{"text_format":"3","workbook":"xlsx","n_sheets":2,"sheets":["atsarga","FORMA"],"not_rendered":{"defined_names":62},"read":"whole","date_system":"1900"}

{"sheet":"atsarga","index":0,"n_rows":91,"n_cols":41,"rows_kept":91,"hidden":true,"merged":[[0,18,1,30],[0,31,4,46],[5,1,5,46],[7,1,7,11],[7,13,7,35],[11,1,11,20],[11,23,11,46],[13,0,13,46],[14,11,14,20],[17,2,17,10],[21,1,21,45],[23,1,23,45],[24,14,24,24],[24,25,24,35],[25,1,25,11],[25,14,25,35],[25,40,25,43],[27,1,27,10],[27,13,27,32],[27,34,27,45],[29,1,29,10],[29,15,29,26],[39,2,39,12],[39,17,39,27],[47,1,47,10],[51,24,51,44],[55,2,55,20],[55,25,55,39],[57,2,57,20],[67,1,67,4],[69,1,69,45],[74,15,74,22],[74,38,74,45],[76,2,76,45],[88,1,88,29],[90,0,97,42]]}
[{"$nulls":18},"LDU version 02",{"$nulls":12},"The form was approved by the Order of the Director of the Board of the State Social Insurance Fund under the Ministry of Social Security and Labour, the Chief State Labour Inspector of the Republic of Lithuania and the Director of the Employment Service under the Ministry of Social Security and Labour of 21 January 2021 No. V-26/EV-19/V-32"]
[]
[]
[]
[]
["L1","ORLEN LIETUVA AB/Public Company ORLEN Lietuva"]
[null,"(name of a legal entity/name, surname of a natural person)"]
["L2",89453,{"$nulls":10},"L3",166451720,{"$nulls":22},"L7","19.20"]
[null,"(policyholder code)",{"$nulls":11},"(legal entity code/natural person code)",{"$nulls":23},"(main operating activity code)"]
["L4","Mažeikių St. 75 Juodeikiai village LT-89453 Mazeikiai District Lithuania"]
[null,"(address)"]
["L5","post@orlenlietuva.lt",{"$nulls":20},"L6"]
[null,"(e-mail address)",{"$nulls":21},"(telephone number)"]
["REPORT ON ALIENS WORKING IN LITHUANIA"]
[{"$nulls":10},1,"2021-09-10",{"$nulls":11},2,"No."]
[{"$nulls":11},"(report registration date: year-month-day)",{"$nulls":13},"(report registration number)"]
[]
["AN",{"$nulls":12},"P1",{"$nulls":4},"P2",{"$nulls":6},"P3"]
[null,null,"(item number)"]
[]
["I.","EMPLOYEE DATA:",{"$nulls":13},"DS",{"$nulls":16},"KD"]
["A1","Artur"]
[null,"(person’s name/names)"]
["A2","Nowacki"]
[null,"(person’s surname)"]
["A3",{"$nulls":12},"A4",93041104556,{"$nulls":23},"A4.1",null,"V - Male"]
[null,"(personal identification number given in the Republic of Lithuania)",{"$nulls":12},"(other personal identification number, if the person has not been assigned a personal identification number in the Republic of Lithuania)",{"$nulls":25},"(person's sex)"]
["A5","1993-04-11",{"$nulls":10},"A6","Polish",{"$nulls":19},"A7","Poland"]
[null,"(date of birth: year-month-day)",{"$nulls":11},"(citizenship)",{"$nulls":20},"(country from which the person arrived)"]
["A8","01",{"$nulls":11},"A8.1",{"$nulls":19},"A8.2"]
[null,"(type of identity document)",{"$nulls":32},"(issuing country)"]
["A8.3",{"$nulls":16},"A8.4"]
[null,null,"(document validity date from: day/month/year)",{"$nulls":16},"(document validity date to: day/month/year)"]
[]
["II.","EMPLOYMENT CONTRACT DATA:",{"$nulls":11},"(completed in the case of an employment contract)"]
["A9",{"$nulls":12},"A10.1",{"$nulls":5},"-",null,null,"-",{"$nulls":5},"A10.2",{"$nulls":5},"-",null,null,"-"]
[null,"(type of employment contract)",{"$nulls":13},"(employment contract period from: day/month/year)",{"$nulls":14},"(employment contract period from: day/month/year)"]
["A9.1",null,"agreement / contract for an indefinite period of time"]
[null,null,"(seasonal worker’s place of residence address in Lithuania)"]
["A11",{"$nulls":14},"A12",{"$nulls":14},"A13"]
[null,null,"(working time; hours/week)",{"$nulls":14},"(amount of salary, EUR)",{"$nulls":14},"(personal occupational group, code)"]
["A14",null,"Is the employee's place of work in Lithuania:",{"$nulls":20},"A15",{"$nulls":9},"A16"]
[{"$nulls":25},"(municipality code)",{"$nulls":9},"(country the social security of which is applied)"]
[]
["III.","FOREIGN EMPLOYER’S DATA:",{"$nulls":10},"(completed in case of a secondment in Lithuania)"]
["U1","Acoustic Emission Diagnostic Polska Sp. z o. o."]
[null,"(employee/company name)"]
["U2","0000242065",{"$nulls":20},"U3",null,"Poland",{"$nulls":10},"U4",null,"71.20"]
[null,"(company identification code)",{"$nulls":22},"(country name)",{"$nulls":12},"(main operating activity code)"]
["U5","ul. Jana Rosoła 40, 02-786 Warszawa Polska/Warsaw, Poland"]
[null,"(employer/company address)"]
["U6","aed@aed-polska.pl",{"$nulls":21},"U7","Tel. +486484840 Mob. +48880575776"]
[null,"(e-mail address)",{"$nulls":22},"(telephone number)"]
["U8","Andrzej Kaźmierczak - Presindent"]
[null,"(name, surname of the person appointed by the employer for relations with Lithuanian institutions)"]
["U8.1",null,"prezes@aed-polska.pl",{"$nulls":20},"U8.2",null,"+48880575776"]
[null,null,"(e-mail address)",{"$nulls":22},"(telephone number)"]
["U8.3",null,"Jana Rosoła 40 02-790 Warszawa Polska "]
[null,null,"(address)"]
[]
["IV.","INFORMATION ON THE SECONDMENT:",{"$nulls":13},"(completed in case of a secondment in Lithuania)"]
["K1","period of secondment:",{"$nulls":7},"K1.1",null,1,2,"\\","0","4","\\","2","0","2","1",{"$nulls":3},"K1.2",null,2,0,"\\","0","4","\\","2","0","2","1"]
[{"$nulls":11},"(from: day/month/year)",{"$nulls":14},"(until: day/month/year)"]
[null,null,"K2",null,"Poland",{"$nulls":17},"K3",null,"LT-89453"]
[{"$nulls":3},"(country the social security of which applies to the person)",{"$nulls":19},"(code of the municipality of the place of work (during the secondment))"]
["K4","ORLEN LIETUVA AB/Public Company ORLEN Lietuva Mažeikių St. 75 Juodeikiai village LT-89453 Mazeikiai District Lithuania"]
[null,"(address of place of work (during the secondment) in Lithuania)"]
["K5","01"]
[null,"(secondment type)"]
["K6","technical specialist/support"]
[null,"(responsibilities/job functions of the seconded employee)"]
[]
["V.","GUARANTEES APPLICABLE TO THE SECONDED EMPLOYEE:",{"$nulls":23},"(completed in case of a secondment in Lithuania)"]
[]
["KG1",null,"70/week - maximum",{"$nulls":10},"KG2",null,"90/week",{"$nulls":9},"KG3",null,1,{"$nulls":8},"KG4",null,"1170 Eur"]
[null,null,"(maximum working hours; hours/week)",{"$nulls":12},"(duration of rest time; hours/week)",{"$nulls":11},"(duration of leave in business days)",{"$nulls":10},"(amount of salary, EUR)"]
["KG5",null,"Rugelis, viesbutis, Gerdarike Ventos g. 31B, Mažeikiai 89141, Litwa"]
[null,null,"(employee's address of residence in Lithuania, if accommodation is provided)"]
["I HEREBY CONFIRM THAT THE IMPLEMENTATION OF LEGAL REQUIREMENTS IS GUARANTEED IN THE COMPANY:"]
["KG6"]
["KG7"]
[]
["KG8"]
[]
["KG9"]
[]
[3]
[null,"(name, surname of the manager or authorized person)"]
[4]
[null,"(contact details of the person who filled in the report: name, surname, telephone number, e-mail)"]
["Additional information according to the form:   A6: Polish nationality, A7: Poland, A8: 01, U4: 71.20, K2: Poland, K3: Jouodeikiai village LT-89453 Mazeikiai District Lithuania, K5: Contracts No 287128, 292344, K01"]

{"sheet":"FORMA","index":1,"n_rows":239,"n_cols":96,"rows_kept":239,"merged":[[0,18,1,30],[0,31,2,46],[3,0,3,46],[6,1,6,13],[8,1,8,45],[10,1,10,45],[11,14,11,24],[11,25,11,35],[12,1,12,11],[12,14,12,35],[12,38,12,39],[12,40,12,45],[14,1,14,10],[14,14,14,31],[14,34,14,45],[16,1,16,11],[16,15,16,26],[16,32,16,33],[16,34,16,45],[17,14,17,26],[18,0,18,1],[18,2,18,11],[18,15,18,24],[22,1,22,45],[24,1,24,20],[24,23,24,45],[26,1,26,45],[28,1,28,45],[30,1,30,21],[30,24,30,45],[32,1,32,45],[34,2,34,21],[34,25,34,45],[36,2,36,45],[40,11,40,20],[40,26,40,35],[42,1,42,19],[42,23,42,45],[44,1,44,45],[46,1,46,45],[48,1,48,45]]}
[{"$nulls":18},"LDU version 03",{"$nulls":12},"The form was approved by the Order of the Director of the Board of the State Social Insurance Fund under the Ministry of Social Security and Labour, the Chief State Labour Inspector of the Republic of Lithuania and the Director of the Employment Service under the Ministry of Social Security and Labour of 21 January 2021 No. V-26/EV-19/V-32",{"$nulls":20},"AD-Andorra",null,"AD",{"$f":"ROWS($BA$1:BA1)","v":1},{"$f":"IF(ISNUMBER(SEARCH($AC$16,BA1,1)),BD1,\"\")","v":1},{"$f":"IFERROR(SMALL($BE$1:$BE$281,BD1),\"\")","v":1},{"$f":"IFERROR(INDEX($BA$1:$BA$281,$BF1,1),\"\")","v":"AD-Andorra"},{"$f":"IF(ISNUMBER(SEARCH(LISTKILME,BA1,1)),BD1,\"\")","v":1},{"$f":"IFERROR(SMALL($BH$1:$BH$281,BD1),\"\")","v":1},{"$f":"IFERROR(INDEX($BA$1:$BA$281,$BI1,1),\"\")","v":"AD-Andorra"},{"$f":"IF(ISNUMBER(SEARCH(LISTDOKSALIS,BA1,1)),BD1,\"\")","v":1},{"$f":"IFERROR(SMALL($BK$1:$BK$281,BD1),\"\")","v":1},{"$f":"IFERROR(INDEX($BA$1:$BA$281,$BL1,1),\"\")","v":"AD-Andorra"},{"$f":"IF(ISNUMBER(SEARCH(LISTU3COUNTY,BA1,1)),BD1,\"\")","v":1},{"$f":"IFERROR(SMALL($BN$1:$BN$281,BD1),\"\")","v":1},{"$f":"IFERROR(INDEX($BA$1:$BA$281,$BO1,1),\"\")","v":"AD-Andorra"},{"$f":"IF(ISNUMBER(SEARCH(LISTSDSALIS,BA1,1)),BD1,\"\")","v":1},{"$f":"IFERROR(SMALL($BQ$1:$BQ$281,BD1),\"\")","v":1},{"$f":"IFERROR(INDEX($BA$1:$BA$281,$BR1,1),\"\")","v":"AD-Andorra"},null,null,"010000-Crop and animal production, hunting and related service activities","010000",{"$f":"ROWS($BW$1:BW1)","v":1},{"$f":"IF(ISNUMBER(SEARCH(LISTU4Veikla,BV1,1)),BX1,\"\")","v":1},{"$f":"IFERROR(SMALL($BY$1:$BY$81,BX1),\"\")","v":1},{"$f":"IFERROR(INDEX($BV$1:$BV$81,$BZ1,1),\"\")","v":"010000-Crop and animal production, hunting and related service activities"},{"$f":"IF(ISNUMBER(SEARCH($CJ$1,BV1,1)),BX1,\"\")","v":""},{"$f":"IFERROR(SMALL($CB$1:$CB$85,BX1),\"\")","v":""},{"$f":"IFERROR(INDEX($BV$1:$BV$81,$CC1,1),\"\")","v":""},null,null,"61-Mažeikių r.","61",null,"01 - Seconded under contract for the provision of services or performance of works","01","01 - Visa-free stay ","01",{"$nulls":3},"Male","V"]
[{"$nulls":52},"AE-United Arab Emirates",null,"AE",{"$f":"ROWS($BA$1:BA2)","v":2},{"$f":"IF(ISNUMBER(SEARCH(ListPIlietybe,BA2,1)),BD2,\"\")","v":2},2,"AE-United Arab Emirates",2,2,"AE-United Arab Emirates",2,2,"AE-United Arab Emirates",2,2,"AE-United Arab Emirates",2,2,"AE-United Arab Emirates",null,null,"020000-Forestry and logging","020000",{"$f":"ROWS($BW$1:BW2)","v":2},2,2,"020000-Forestry and logging",{"$f":"IF(ISNUMBER(SEARCH($CJ$1,BV2,1)),BX2,\"\")","v":""},"","",null,null,"25-Palangos",25,null,"02 - Seconded to work in a subsidiary, representative office, group company or other workplace of the employer's legal entity ","02","02 - Schengen visa ","02",{"$nulls":3},"Female","M"]
[{"$nulls":52},"AF-Afghanistan",null,"AF",{"$f":"ROWS($BA$1:BA3)","v":3},3,3,"AF-Afghanistan",3,3,"AF-Afghanistan",3,3,"AF-Afghanistan",3,3,"AF-Afghanistan",3,3,"AF-Afghanistan",null,null,"030000-Fishing and aquaculture","030000",{"$f":"ROWS($BW$1:BW3)","v":3},3,3,"030000-Fishing and aquaculture","","","",null,null,"36-Biržų r.","36",null,"03 - Seconded as a temporary worker ","03","03 - National visa issued by Lithuania ","03"]
["REPORT ON ALIENS WORKING IN LITHUANIA",{"$nulls":51},"AG-Antigua and Barbuda",null,"AG",{"$f":"ROWS($BA$1:BA4)","v":4},4,4,"AG-Antigua and Barbuda",4,4,"AG-Antigua and Barbuda",4,4,"AG-Antigua and Barbuda",4,4,"AG-Antigua and Barbuda",4,4,"AG-Antigua and Barbuda",null,null,"050000-Mining of coal and lignite","050000",{"$f":"ROWS($BW$1:BW4)","v":4},4,4,"050000-Mining of coal and lignite","","","",null,null,"13-Vilniaus m.","13",{"$nulls":3},"04 - National visa issued by other Schengen Area country ","04"]
[{"$nulls":52},"AI-Anguilla",null,"AI",{"$f":"ROWS($BA$1:BA5)","v":5},5,5,"AI-Anguilla",5,5,"AI-Anguilla",5,5,"AI-Anguilla",5,5,"AI-Anguilla",5,5,"AI-Anguilla",null,null,"060000-Extraction of crude petroleum and natural gas","060000",{"$f":"ROWS($BW$1:BW5)","v":5},5,5,"060000-Extraction of crude petroleum and natural gas","","","",{"$nulls":7},"05 - Residence permit issued by other Schengen Area country ","05"]
["I.","SECONDED EMPLOYEE DATA:",{"$nulls":50},"AL-Albania",null,"AL",{"$f":"ROWS($BA$1:BA6)","v":6},6,6,"AL-Albania",6,6,"AL-Albania",6,6,"AL-Albania",6,6,"AL-Albania",6,6,"AL-Albania",null,null,"070000-Mining of metal ores","070000",{"$f":"ROWS($BW$1:BW6)","v":6},6,6,"070000-Mining of metal ores","","","",{"$nulls":7},"06 - Temporary residence permit issued by Lithuania ","06"]
["UK",{"$nulls":51},"AM-Armenia",null,"AM",{"$f":"ROWS($BA$1:BA7)","v":7},7,7,"AM-Armenia",7,7,"AM-Armenia",7,7,"AM-Armenia",7,7,"AM-Armenia",7,7,"AM-Armenia",null,null,"080000-Other mining and quarrying","080000",{"$f":"ROWS($BW$1:BW7)","v":7},7,7,"080000-Other mining and quarrying"]
[null,"(ILTU code - code of an alien with interests in Lithuania)",{"$nulls":50},"AN-Obsolete see NL territory",null,"AN",{"$f":"ROWS($BA$1:BA8)","v":8},8,8,"AN-Obsolete see NL territory",8,8,"AN-Obsolete see NL territory",8,8,"AN-Obsolete see NL territory",8,8,"AN-Obsolete see NL territory",8,8,"AN-Obsolete see NL territory",null,null,"090000-Mining support service activities","090000",{"$f":"ROWS($BW$1:BW8)","v":8},8,8,"090000-Mining support service activities"]
["A1",{"$nulls":51},"AO-Angola",null,"AO",{"$f":"ROWS($BA$1:BA9)","v":9},9,9,"AO-Angola",9,9,"AO-Angola",9,9,"AO-Angola",9,9,"AO-Angola",9,9,"AO-Angola",null,null,"100000-Manufacture of food products","100000",{"$f":"ROWS($BW$1:BW9)","v":9},9,9,"100000-Manufacture of food products",{"$f":"IF(ISNUMBER(SEARCH($CJ$1,BV7,1)),BX7,\"\")","v":""},{"$f":"IFERROR(SMALL($CB$1:$CB$85,BX7),\"\")","v":""},{"$f":"IFERROR(INDEX($BV$1:$BV$81,$CC9,1),\"\")","v":""},{"$nulls":7},"07 - Permanent residence permit issued by Lithuania ","07"]
[null,"(person’s name/names)",{"$nulls":50},"AQ-Antarctica",null,"AQ",{"$f":"ROWS($BA$1:BA10)","v":10},10,10,"AQ-Antarctica",10,10,"AQ-Antarctica",10,10,"AQ-Antarctica",10,10,"AQ-Antarctica",10,10,"AQ-Antarctica",null,null,"110000-Manufacture of beverages","110000",{"$f":"ROWS($BW$1:BW10)","v":10},10,10,"110000-Manufacture of beverages","","","",{"$nulls":7},"09 - Certificate of temporary residence in the Republic of Lithuania","09"]
["A2",{"$nulls":51},"AR-Argentina",null,"AR",{"$f":"ROWS($BA$1:BA11)","v":11},11,11,"AR-Argentina",11,11,"AR-Argentina",11,11,"AR-Argentina",11,11,"AR-Argentina",11,11,"AR-Argentina",null,null,"120000-Manufacture of tobacco products","120000",{"$f":"ROWS($BW$1:BW11)","v":11},11,11,"120000-Manufacture of tobacco products","","","",{"$nulls":7},"10 - Certificate of permanent residence in the Republic of Lithuania ","10"]
[null,"(person’s surname)",{"$nulls":50},"AS-American Samoa",null,"AS",{"$f":"ROWS($BA$1:BA12)","v":12},12,12,"AS-American Samoa",12,12,"AS-American Samoa",12,12,"AS-American Samoa",12,12,"AS-American Samoa",12,12,"AS-American Samoa",null,null,"130000-Manufacture of textiles","130000",{"$f":"ROWS($BW$1:BW12)","v":12},12,12,"130000-Manufacture of textiles","","","",{"$nulls":7},"11 - Temporary residence card of a family member of a European Union citizen ","11"]
["A3",{"$nulls":12},"A4",{"$nulls":24},"A4.1",{"$nulls":7},{"$f":"IFERROR(VLOOKUP(AO13,CQ1:CR2,2,FALSE),\"\")","v":""},{"$nulls":5},"AT-Austria",null,"AT",{"$f":"ROWS($BA$1:BA13)","v":13},13,13,"AT-Austria",13,13,"AT-Austria",13,13,"AT-Austria",13,13,"AT-Austria",13,13,"AT-Austria",null,null,"140000-Manufacture of wearing apparel","140000",{"$f":"ROWS($BW$1:BW13)","v":13},13,13,"140000-Manufacture of wearing apparel","","","",{"$nulls":7},"12 - Permanent residence card of a family member of a European Union citizen","12"]
[null,"(personal identification number given in the Republic of Lithuania)",{"$nulls":12},"(other personal identification number, if the person has not been assigned a personal identification number in the Republic of Lithuania)",{"$nulls":25},"(person's sex)",{"$nulls":11},"AU-Australia",null,"AU",{"$f":"ROWS($BA$1:BA14)","v":14},14,14,"AU-Australia",14,14,"AU-Australia",14,14,"AU-Australia",14,14,"AU-Australia",14,14,"AU-Australia",null,null,"150000-Manufacture of leather and related products","150000",{"$f":"ROWS($BW$1:BW14)","v":14},14,14,"150000-Manufacture of leather and related products","","","",{"$nulls":7},"13 - Travel document for aliens ","13"]
["A5",{"$nulls":12},"A6",{"$nulls":18},{"$f":"IFERROR(VLOOKUP(O15,VALSTYBES,3,FALSE),\"\")","v":""},"A7",{"$nulls":12},{"$f":"IFERROR(VLOOKUP(AI15,VALSTYBES,3,FALSE),\"\")","v":""},{"$nulls":5},"AW-Aruba",null,"AW",{"$f":"ROWS($BA$1:BA15)","v":15},15,15,"AW-Aruba",15,15,"AW-Aruba",15,15,"AW-Aruba",15,15,"AW-Aruba",15,15,"AW-Aruba",null,null,"160000-Manufacture of wood and of products of wood and cork, except furniture; manufacture of articles of straw and plaiting materials","160000",{"$f":"ROWS($BW$1:BW15)","v":15},15,15,"160000-Manufacture of wood and of products of wood and cork, except furniture; manufacture of articles of straw and plaiting materials","","","",{"$nulls":7},"14 - Registration document for aliens confirming the right to work ","14"]
[null,"(date of birth: year-month-day)",{"$nulls":12},"(citizenship)",{"$nulls":19},"(country from which the person arrived)",{"$nulls":17},"AZ-Azerbaijan",null,"AZ",{"$f":"ROWS($BA$1:BA16)","v":16},16,16,"AZ-Azerbaijan",16,16,"AZ-Azerbaijan",16,16,"AZ-Azerbaijan",16,16,"AZ-Azerbaijan",16,16,"AZ-Azerbaijan",null,null,"170000-Manufacture of paper and paper products","170000",{"$f":"ROWS($BW$1:BW16)","v":16},16,16,"170000-Manufacture of paper and paper products","","",""]
["A8",{"$nulls":11},{"$f":"IFERROR(VLOOKUP(B17,CL1:CM15,2,FALSE),\"\")","v":""},"A8.1",{"$nulls":18},"A8.2",{"$nulls":13},{"$f":"IFERROR(VLOOKUP(AI17,BA:BC,3,FALSE),\"\")","v":""},{"$nulls":5},"BA-Bosnia and Herzegovina",null,"BA",{"$f":"ROWS($BA$1:BA17)","v":17},17,17,"BA-Bosnia and Herzegovina",17,17,"BA-Bosnia and Herzegovina",17,17,"BA-Bosnia and Herzegovina",17,17,"BA-Bosnia and Herzegovina",17,17,"BA-Bosnia and Herzegovina",null,null,"180000-Printing and reproduction of recorded media","180000",{"$f":"ROWS($BW$1:BW17)","v":17},17,17,"180000-Printing and reproduction of recorded media","","",""]
[null,"(type of identity document)",{"$nulls":12},"(document number)",{"$nulls":20},"(issuing country)",{"$nulls":16},"BB-Barbados",null,"BB",{"$f":"ROWS($BA$1:BA18)","v":18},18,18,"BB-Barbados",18,18,"BB-Barbados",18,18,"BB-Barbados",18,18,"BB-Barbados",18,18,"BB-Barbados",null,null,"190000-Manufacture of coke and refined petroleum products","190000",{"$f":"ROWS($BW$1:BW18)","v":18},18,18,"190000-Manufacture of coke and refined petroleum products","","",""]
["A8.3",{"$nulls":12},"A8.4",{"$nulls":38},"BD-Bangladesh",null,"BD",{"$f":"ROWS($BA$1:BA19)","v":19},19,19,"BD-Bangladesh",19,19,"BD-Bangladesh",19,19,"BD-Bangladesh",19,19,"BD-Bangladesh",19,19,"BD-Bangladesh",null,null,"200000-Manufacture of chemicals and chemical products","200000",{"$f":"ROWS($BW$1:BW19)","v":19},19,19,"200000-Manufacture of chemicals and chemical products","","",""]
[null,null,"(document validity date from: year-month-day)",{"$nulls":12},"(document validity date to: year-month-day)",{"$nulls":36},"BE-Belgium",null,"BE",{"$f":"ROWS($BA$1:BA20)","v":20},20,20,"BE-Belgium",20,20,"BE-Belgium",20,20,"BE-Belgium",20,20,"BE-Belgium",20,20,"BE-Belgium",null,null,"210000-Manufacture of basic pharmaceutical products and pharmaceutical preparations","210000",{"$f":"ROWS($BW$1:BW20)","v":20},20,20,"210000-Manufacture of basic pharmaceutical products and pharmaceutical preparations","","",""]
[{"$nulls":52},"BF-Burkina Faso",null,"BF",{"$f":"ROWS($BA$1:BA21)","v":21},21,21,"BF-Burkina Faso",21,21,"BF-Burkina Faso",21,21,"BF-Burkina Faso",21,21,"BF-Burkina Faso",21,21,"BF-Burkina Faso",null,null,"220000-Manufacture of rubber and plastic products","220000",{"$f":"ROWS($BW$1:BW21)","v":21},21,21,"220000-Manufacture of rubber and plastic products","","",""]
["III.","FOREIGN EMPLOYER’S DATA:",{"$nulls":10},"(completed in case of a secondment in Lithuania)",{"$nulls":39},"BG-Bulgaria",null,"BG",{"$f":"ROWS($BA$1:BA22)","v":22},22,22,"BG-Bulgaria",22,22,"BG-Bulgaria",22,22,"BG-Bulgaria",22,22,"BG-Bulgaria",22,22,"BG-Bulgaria",null,null,"230000-Manufacture of other non-metallic mineral products","230000",{"$f":"ROWS($BW$1:BW22)","v":22},22,22,"230000-Manufacture of other non-metallic mineral products","","",""]
["U1",{"$nulls":51},"BH-Bahrain",null,"BH",{"$f":"ROWS($BA$1:BA23)","v":23},23,23,"BH-Bahrain",23,23,"BH-Bahrain",23,23,"BH-Bahrain",23,23,"BH-Bahrain",23,23,"BH-Bahrain",null,null,"240000-Manufacture of basic metals","240000",{"$f":"ROWS($BW$1:BW23)","v":23},23,23,"240000-Manufacture of basic metals","","",""]
[null,"(employee/company name)",{"$nulls":50},"BI-Burundi",null,"BI",{"$f":"ROWS($BA$1:BA24)","v":24},24,24,"BI-Burundi",24,24,"BI-Burundi",24,24,"BI-Burundi",24,24,"BI-Burundi",24,24,"BI-Burundi",null,null,"250000-Manufacture of fabricated metal products, except machinery and equipment","250000",{"$f":"ROWS($BW$1:BW24)","v":24},24,24,"250000-Manufacture of fabricated metal products, except machinery and equipment","","",""]
["U2",{"$nulls":21},"U3",{"$nulls":23},{"$f":"IFERROR(VLOOKUP(LISTU3COUNTY,VALSTYBES,3,FALSE),\"\")","v":""},{"$nulls":5},"BJ-Benin",null,"BJ",{"$f":"ROWS($BA$1:BA25)","v":25},25,25,"BJ-Benin",25,25,"BJ-Benin",25,25,"BJ-Benin",25,25,"BJ-Benin",25,25,"BJ-Benin",null,null,"260000-Manufacture of computer, electronic and optical products","260000",{"$f":"ROWS($BW$1:BW25)","v":25},25,25,"260000-Manufacture of computer, electronic and optical products","","",""]
[null,"(company identification code)",{"$nulls":22},"(country name)",{"$nulls":27},"BM-Bermuda",null,"BM",{"$f":"ROWS($BA$1:BA26)","v":26},26,26,"BM-Bermuda",26,26,"BM-Bermuda",26,26,"BM-Bermuda",26,26,"BM-Bermuda",26,26,"BM-Bermuda",null,null,"270000-Manufacture of electrical equipment","270000",{"$f":"ROWS($BW$1:BW26)","v":26},26,26,"270000-Manufacture of electrical equipment","","",""]
["U4",{"$nulls":51},"BN-Brunei Darussalam",null,"BN",{"$f":"ROWS($BA$1:BA27)","v":27},27,27,"BN-Brunei Darussalam",27,27,"BN-Brunei Darussalam",27,27,"BN-Brunei Darussalam",27,27,"BN-Brunei Darussalam",27,27,"BN-Brunei Darussalam",null,null,"280000-Manufacture of machinery and equipment n.e.c.","280000",{"$f":"ROWS($BW$1:BW27)","v":27},27,27,"280000-Manufacture of machinery and equipment n.e.c.","","",""]
[null,null,"(main operating activity code)",{"$nulls":36},{"$f":"IFERROR(VLOOKUP(LISTU4Veikla,VEIKLOS,2,FALSE),\"\")","v":""},{"$nulls":12},"BO-Bolivia, Plurinational State of",null,"BO",{"$f":"ROWS($BA$1:BA28)","v":28},28,28,"BO-Bolivia, Plurinational State of",28,28,"BO-Bolivia, Plurinational State of",28,28,"BO-Bolivia, Plurinational State of",28,28,"BO-Bolivia, Plurinational State of",28,28,"BO-Bolivia, Plurinational State of",null,null,"290000-Manufacture of motor vehicles, trailers and semi-trailers","290000",{"$f":"ROWS($BW$1:BW28)","v":28},28,28,"290000-Manufacture of motor vehicles, trailers and semi-trailers","","",""]
["U5",{"$nulls":51},"BR-Brazil",null,"BR",{"$f":"ROWS($BA$1:BA29)","v":29},29,29,"BR-Brazil",29,29,"BR-Brazil",29,29,"BR-Brazil",29,29,"BR-Brazil",29,29,"BR-Brazil",null,null,"300000-Manufacture of other transport equipment","300000",{"$f":"ROWS($BW$1:BW29)","v":29},29,29,"300000-Manufacture of other transport equipment","","",""]
[null,"(employer/company address)",{"$nulls":50},"BS-Bahamas",null,"BS",{"$f":"ROWS($BA$1:BA30)","v":30},30,30,"BS-Bahamas",30,30,"BS-Bahamas",30,30,"BS-Bahamas",30,30,"BS-Bahamas",30,30,"BS-Bahamas",null,null,"310000-Manufacture of furniture","310000",{"$f":"ROWS($BW$1:BW30)","v":30},30,30,"310000-Manufacture of furniture","","",""]
["U6",{"$nulls":22},"U7",{"$nulls":28},"BT-Bhutan",null,"BT",{"$f":"ROWS($BA$1:BA31)","v":31},31,31,"BT-Bhutan",31,31,"BT-Bhutan",31,31,"BT-Bhutan",31,31,"BT-Bhutan",31,31,"BT-Bhutan",null,null,"320000-Other manufacturing","320000",{"$f":"ROWS($BW$1:BW31)","v":31},31,31,"320000-Other manufacturing","","",""]
[null,"(e-mail address)",{"$nulls":22},"(telephone number)",{"$nulls":27},"BV-Bouvet Island",null,"BV",{"$f":"ROWS($BA$1:BA32)","v":32},32,32,"BV-Bouvet Island",32,32,"BV-Bouvet Island",32,32,"BV-Bouvet Island",32,32,"BV-Bouvet Island",32,32,"BV-Bouvet Island",null,null,"330000-Repair and installation of machinery and equipment","330000",{"$f":"ROWS($BW$1:BW32)","v":32},32,32,"330000-Repair and installation of machinery and equipment","","",""]
["U8",{"$nulls":51},"BW-Botswana",null,"BW",{"$f":"ROWS($BA$1:BA33)","v":33},33,33,"BW-Botswana",33,33,"BW-Botswana",33,33,"BW-Botswana",33,33,"BW-Botswana",33,33,"BW-Botswana",null,null,"350000-Electricity, gas, steam and air conditioning supply","350000",{"$f":"ROWS($BW$1:BW33)","v":33},{"$f":"IF(ISNUMBER(SEARCH(LISTU4Veikla,BV33,1)),BX33,\"\")","v":33},{"$f":"IFERROR(SMALL($BY$1:$BY$81,BX33),\"\")","v":33},{"$f":"IFERROR(INDEX($BV$1:$BV$81,$BZ33,1),\"\")","v":"350000-Electricity, gas, steam and air conditioning supply"},"","",""]
[null,"(name, surname of the person appointed by the employer for relations with Lithuanian institutions)",{"$nulls":50},"BY-Belarus",null,"BY",{"$f":"ROWS($BA$1:BA34)","v":34},34,34,"BY-Belarus",34,34,"BY-Belarus",34,34,"BY-Belarus",34,34,"BY-Belarus",34,34,"BY-Belarus",null,null,"360000-Water collection, treatment and supply","360000",{"$f":"ROWS($BW$1:BW34)","v":34},34,34,"360000-Water collection, treatment and supply","","",""]
["U8.1",{"$nulls":22},"U8.2",{"$nulls":28},"BZ-Belize",null,"BZ",{"$f":"ROWS($BA$1:BA35)","v":35},35,35,"BZ-Belize",35,35,"BZ-Belize",35,35,"BZ-Belize",35,35,"BZ-Belize",35,35,"BZ-Belize",null,null,"370000-Sewerage","370000",{"$f":"ROWS($BW$1:BW35)","v":35},35,35,"370000-Sewerage","","",""]
[null,null,"(e-mail address)",{"$nulls":22},"(telephone number)",{"$nulls":26},"CA-Canada",null,"CA",{"$f":"ROWS($BA$1:BA36)","v":36},36,36,"CA-Canada",36,36,"CA-Canada",36,36,"CA-Canada",36,36,"CA-Canada",36,36,"CA-Canada",null,null,"380000-Waste collection, treatment and disposal activities; materials recovery","380000",{"$f":"ROWS($BW$1:BW36)","v":36},36,36,"380000-Waste collection, treatment and disposal activities; materials recovery","","",""]
["U8.3",{"$nulls":51},"CC-Cocos (Keeling) Islands",null,"CC",{"$f":"ROWS($BA$1:BA37)","v":37},37,37,"CC-Cocos (Keeling) Islands",37,37,"CC-Cocos (Keeling) Islands",37,37,"CC-Cocos (Keeling) Islands",37,37,"CC-Cocos (Keeling) Islands",37,37,"CC-Cocos (Keeling) Islands",null,null,"390000-Remediation activities and other waste management services","390000",{"$f":"ROWS($BW$1:BW37)","v":37},37,37,"390000-Remediation activities and other waste management services","","",""]
[null,null,"(address)",{"$nulls":49},"CD-Congo, The Democratic Republic of the",null,"CD",{"$f":"ROWS($BA$1:BA38)","v":38},38,38,"CD-Congo, The Democratic Republic of the",38,38,"CD-Congo, The Democratic Republic of the",38,38,"CD-Congo, The Democratic Republic of the",38,38,"CD-Congo, The Democratic Republic of the",38,38,"CD-Congo, The Democratic Republic of the",null,null,"410000-Construction of buildings","410000",{"$f":"ROWS($BW$1:BW38)","v":38},38,38,"410000-Construction of buildings","","",""]
[{"$nulls":52},"CF-Central African Republic",null,"CF",{"$f":"ROWS($BA$1:BA39)","v":39},39,39,"CF-Central African Republic",39,39,"CF-Central African Republic",39,39,"CF-Central African Republic",39,39,"CF-Central African Republic",39,39,"CF-Central African Republic",null,null,"420000-Civil engineering","420000",{"$f":"ROWS($BW$1:BW39)","v":39},39,39,"420000-Civil engineering","","",""]
["IV.","INFORMATION ON THE SECONDMENT:",{"$nulls":13},"(completed in case of a secondment in Lithuania)",{"$nulls":36},"CG-Congo",null,"CG",{"$f":"ROWS($BA$1:BA40)","v":40},40,40,"CG-Congo",40,40,"CG-Congo",40,40,"CG-Congo",40,40,"CG-Congo",40,40,"CG-Congo",null,null,"430000-Specialised construction activities","430000",{"$f":"ROWS($BW$1:BW40)","v":40},40,40,"430000-Specialised construction activities","","",""]
["K1","period of secondment:",{"$nulls":7},"K1.1",{"$nulls":14},"K1.2",{"$nulls":27},"CH-Switzerland",null,"CH",{"$f":"ROWS($BA$1:BA41)","v":41},41,41,"CH-Switzerland",41,41,"CH-Switzerland",41,41,"CH-Switzerland",41,41,"CH-Switzerland",41,41,"CH-Switzerland",null,null,"450000-Wholesale and retail trade and repair of motor vehicles and motorcycles","450000",{"$f":"ROWS($BW$1:BW41)","v":41},41,41,"450000-Wholesale and retail trade and repair of motor vehicles and motorcycles","","",""]
[{"$nulls":11},"(from: year-month-day)",{"$nulls":14},"(until: year-month-day)",{"$nulls":25},"CI-Cote d'Ivoire",null,"CI",{"$f":"ROWS($BA$1:BA42)","v":42},42,42,"CI-Cote d'Ivoire",42,42,"CI-Cote d'Ivoire",42,42,"CI-Cote d'Ivoire",42,42,"CI-Cote d'Ivoire",42,42,"CI-Cote d'Ivoire",null,null,"460000-Wholesale trade, except of motor vehicles and motorcycles","460000",{"$f":"ROWS($BW$1:BW42)","v":42},42,42,"460000-Wholesale trade, except of motor vehicles and motorcycles","","",""]
["K2",{"$nulls":19},{"$f":"IFERROR(VLOOKUP(LISTSDSALIS,VALSTYBES,3,FALSE),\"\")","v":""},null,"K3",{"$nulls":23},{"$f":"IFERROR(VLOOKUP(X43,CG1:CH4,2,FALSE),\"\")","v":""},{"$nulls":5},"CK-Cook Islands",null,"CK",{"$f":"ROWS($BA$1:BA43)","v":43},43,43,"CK-Cook Islands",43,43,"CK-Cook Islands",43,43,"CK-Cook Islands",43,43,"CK-Cook Islands",43,43,"CK-Cook Islands",null,null,"470000-Retail trade, except of motor vehicles and motorcycles","470000",{"$f":"ROWS($BW$1:BW43)","v":43},43,43,"470000-Retail trade, except of motor vehicles and motorcycles","","",""]
[{"$nulls":3},"(country the social security of which applies to the person)",{"$nulls":19},"(code of the municipality of the place of work (during the secondment))",{"$nulls":28},"CL-Chile",null,"CL",{"$f":"ROWS($BA$1:BA44)","v":44},44,44,"CL-Chile",44,44,"CL-Chile",44,44,"CL-Chile",44,44,"CL-Chile",44,44,"CL-Chile",null,null,"490000-Land transport and transport via pipelines","490000",{"$f":"ROWS($BW$1:BW44)","v":44},44,44,"490000-Land transport and transport via pipelines","","",""]
["K4",{"$nulls":51},"CM-Cameroon",null,"CM",{"$f":"ROWS($BA$1:BA45)","v":45},45,45,"CM-Cameroon",45,45,"CM-Cameroon",45,45,"CM-Cameroon",45,45,"CM-Cameroon",45,45,"CM-Cameroon",null,null,"500000-Water transport","500000",{"$f":"ROWS($BW$1:BW45)","v":45},45,45,"500000-Water transport","","",""]
[null,"(address of place of work (during the secondment) in Lithuania)",{"$nulls":50},"CN-China",null,"CN",{"$f":"ROWS($BA$1:BA46)","v":46},46,46,"CN-China",46,46,"CN-China",46,46,"CN-China",46,46,"CN-China",46,46,"CN-China",null,null,"510000-Air transport","510000",{"$f":"ROWS($BW$1:BW46)","v":46},46,46,"510000-Air transport","","",""]
["K5",{"$nulls":45},{"$f":"IFERROR(VLOOKUP(B47,CJ1:CK3,2,FALSE),\"\")","v":""},{"$nulls":5},"CO-Colombia",null,"CO",{"$f":"ROWS($BA$1:BA47)","v":47},47,47,"CO-Colombia",47,47,"CO-Colombia",47,47,"CO-Colombia",47,47,"CO-Colombia",47,47,"CO-Colombia",null,null,"520000-Warehousing and support activities for transportation","520000",{"$f":"ROWS($BW$1:BW47)","v":47},47,47,"520000-Warehousing and support activities for transportation","","",""]
[null,"(secondment type)",{"$nulls":50},"CR-Costa Rica",null,"CR",{"$f":"ROWS($BA$1:BA48)","v":48},48,48,"CR-Costa Rica",48,48,"CR-Costa Rica",48,48,"CR-Costa Rica",48,48,"CR-Costa Rica",48,48,"CR-Costa Rica",null,null,"530000-Postal and courier activities","530000",{"$f":"ROWS($BW$1:BW48)","v":48},48,48,"530000-Postal and courier activities","","",""]
["K6",{"$nulls":51},"FJ-Fiji",null,"FJ",{"$f":"ROWS($BA$1:BA49)","v":49},{"$f":"IF(ISNUMBER(SEARCH(ListPIlietybe,BA49,1)),BD49,\"\")","v":49},49,"FJ-Fiji",{"$f":"IF(ISNUMBER(SEARCH(LISTKILME,BA49,1)),BD49,\"\")","v":49},49,"FJ-Fiji",{"$f":"IF(ISNUMBER(SEARCH(LISTDOKSALIS,BA49,1)),BD49,\"\")","v":49},49,"FJ-Fiji",{"$f":"IF(ISNUMBER(SEARCH(LISTU3COUNTY,BA49,1)),BD49,\"\")","v":49},49,"FJ-Fiji",{"$f":"IF(ISNUMBER(SEARCH(LISTSDSALIS,BA49,1)),BD49,\"\")","v":49},49,"FJ-Fiji",null,null,"770000-Rental and leasing activities","770000",{"$f":"ROWS($BW$1:BW49)","v":49},{"$f":"IF(ISNUMBER(SEARCH(LISTU4Veikla,BV49,1)),BX49,\"\")","v":49},49,"770000-Rental and leasing activities","","",""]
[null,"(responsibilities/job functions of the seconded employee)",{"$nulls":50},"FK-Falkland Islands (Malvinas)",null,"FK",{"$f":"ROWS($BA$1:BA50)","v":50},50,50,"FK-Falkland Islands (Malvinas)",50,50,"FK-Falkland Islands (Malvinas)",50,50,"FK-Falkland Islands (Malvinas)",50,50,"FK-Falkland Islands (Malvinas)",50,50,"FK-Falkland Islands (Malvinas)",null,null,"780000-Employment activities","780000",{"$f":"ROWS($BW$1:BW50)","v":50},50,50,"780000-Employment activities","","",""]
[{"$nulls":52},"FM-Micronesia, Federated States of",null,"FM",{"$f":"ROWS($BA$1:BA51)","v":51},51,51,"FM-Micronesia, Federated States of",51,51,"FM-Micronesia, Federated States of",51,51,"FM-Micronesia, Federated States of",51,51,"FM-Micronesia, Federated States of",51,51,"FM-Micronesia, Federated States of",null,null,"790000-Travel agency, tour operator reservation service and related activities","790000",{"$f":"ROWS($BW$1:BW51)","v":51},51,51,"790000-Travel agency, tour operator reservation service and related activities"]
[{"$nulls":52},"FO-Faroe Islands",null,"FO",{"$f":"ROWS($BA$1:BA52)","v":52},52,52,"FO-Faroe Islands",52,52,"FO-Faroe Islands",52,52,"FO-Faroe Islands",52,52,"FO-Faroe Islands",52,52,"FO-Faroe Islands",null,null,"800000-Security and investigation activities","800000",{"$f":"ROWS($BW$1:BW52)","v":52},52,52,"800000-Security and investigation activities"]
[{"$nulls":52},"FR-France",null,"FR",{"$f":"ROWS($BA$1:BA53)","v":53},53,53,"FR-France",53,53,"FR-France",53,53,"FR-France",53,53,"FR-France",53,53,"FR-France",null,null,"810000-Services to buildings and landscape activities","810000",{"$f":"ROWS($BW$1:BW53)","v":53},53,53,"810000-Services to buildings and landscape activities",{"$f":"IF(ISNUMBER(SEARCH($CJ$1,BV49,1)),BX49,\"\")","v":""},{"$f":"IFERROR(SMALL($CB$1:$CB$85,BX49),\"\")","v":""},{"$f":"IFERROR(INDEX($BV$1:$BV$81,$CC53,1),\"\")","v":""}]
[{"$nulls":52},"FX-Obsolete see FR territory",null,"FX",{"$f":"ROWS($BA$1:BA54)","v":54},54,54,"FX-Obsolete see FR territory",54,54,"FX-Obsolete see FR territory",54,54,"FX-Obsolete see FR territory",54,54,"FX-Obsolete see FR territory",54,54,"FX-Obsolete see FR territory",null,null,"820000-Office administrative, office support and other business support activities","820000",{"$f":"ROWS($BW$1:BW54)","v":54},54,54,"820000-Office administrative, office support and other business support activities","","",""]
[{"$nulls":52},"GA-Gabon",null,"GA",{"$f":"ROWS($BA$1:BA55)","v":55},55,55,"GA-Gabon",55,55,"GA-Gabon",55,55,"GA-Gabon",55,55,"GA-Gabon",55,55,"GA-Gabon",null,null,"840000-Public administration and defence; compulsory social security","840000",{"$f":"ROWS($BW$1:BW55)","v":55},55,55,"840000-Public administration and defence; compulsory social security","","",""]
[{"$nulls":52},"GB-United Kingdom",null,"GB",{"$f":"ROWS($BA$1:BA56)","v":56},56,56,"GB-United Kingdom",56,56,"GB-United Kingdom",56,56,"GB-United Kingdom",56,56,"GB-United Kingdom",56,56,"GB-United Kingdom",null,null,"850000-Education","850000",{"$f":"ROWS($BW$1:BW56)","v":56},56,56,"850000-Education","","",""]
[{"$nulls":52},"GD-Grenada",null,"GD",{"$f":"ROWS($BA$1:BA57)","v":57},57,57,"GD-Grenada",57,57,"GD-Grenada",57,57,"GD-Grenada",57,57,"GD-Grenada",57,57,"GD-Grenada",null,null,"860000-Human health activities","860000",{"$f":"ROWS($BW$1:BW57)","v":57},57,57,"860000-Human health activities","","",""]
[{"$nulls":52},"GE-Georgia",null,"GE",{"$f":"ROWS($BA$1:BA58)","v":58},58,58,"GE-Georgia",58,58,"GE-Georgia",58,58,"GE-Georgia",58,58,"GE-Georgia",58,58,"GE-Georgia",null,null,"870000-Residential care activities","870000",{"$f":"ROWS($BW$1:BW58)","v":58},58,58,"870000-Residential care activities","","",""]
[{"$nulls":52},"GF-French Guiana",null,"GF",{"$f":"ROWS($BA$1:BA59)","v":59},59,59,"GF-French Guiana",59,59,"GF-French Guiana",59,59,"GF-French Guiana",59,59,"GF-French Guiana",59,59,"GF-French Guiana",null,null,"880000-Social work activities without accommodation","880000",{"$f":"ROWS($BW$1:BW59)","v":59},59,59,"880000-Social work activities without accommodation","","",""]
[{"$nulls":52},"GH-Ghana",null,"GH",{"$f":"ROWS($BA$1:BA60)","v":60},60,60,"GH-Ghana",60,60,"GH-Ghana",60,60,"GH-Ghana",60,60,"GH-Ghana",60,60,"GH-Ghana",null,null,"900000-Creative, arts and entertainment activities","900000",{"$f":"ROWS($BW$1:BW60)","v":60},60,60,"900000-Creative, arts and entertainment activities","","",""]
[{"$nulls":52},"GI-Gibraltar",null,"GI",{"$f":"ROWS($BA$1:BA61)","v":61},61,61,"GI-Gibraltar",61,61,"GI-Gibraltar",61,61,"GI-Gibraltar",61,61,"GI-Gibraltar",61,61,"GI-Gibraltar",null,null,"910000-Libraries, archives, museums and other cultural activities","910000",{"$f":"ROWS($BW$1:BW61)","v":61},61,61,"910000-Libraries, archives, museums and other cultural activities","","",""]
[{"$nulls":52},"GL-Greenland",null,"GL",{"$f":"ROWS($BA$1:BA62)","v":62},62,62,"GL-Greenland",62,62,"GL-Greenland",62,62,"GL-Greenland",62,62,"GL-Greenland",62,62,"GL-Greenland",null,null,"920000-Gambling and betting activities","920000",{"$f":"ROWS($BW$1:BW62)","v":62},62,62,"920000-Gambling and betting activities","","",""]
[{"$nulls":52},"GM-Gambia",null,"GM",{"$f":"ROWS($BA$1:BA63)","v":63},63,63,"GM-Gambia",63,63,"GM-Gambia",63,63,"GM-Gambia",63,63,"GM-Gambia",63,63,"GM-Gambia",null,null,"930000-Sports activities and amusement and recreation activities","930000",{"$f":"ROWS($BW$1:BW63)","v":63},63,63,"930000-Sports activities and amusement and recreation activities","","",""]
[{"$nulls":52},"GN-Guinea",null,"GN",{"$f":"ROWS($BA$1:BA64)","v":64},64,64,"GN-Guinea",64,64,"GN-Guinea",64,64,"GN-Guinea",64,64,"GN-Guinea",64,64,"GN-Guinea",null,null,"940000-Activities of membership organisations","940000",{"$f":"ROWS($BW$1:BW64)","v":64},64,64,"940000-Activities of membership organisations","","",""]
[{"$nulls":52},"GP-Guadeloupe",null,"GP",{"$f":"ROWS($BA$1:BA65)","v":65},65,{"$f":"IFERROR(SMALL($BE$1:$BE$281,BD65),\"\")","v":65},{"$f":"IFERROR(INDEX($BA$1:$BA$281,$BF65,1),\"\")","v":"GP-Guadeloupe"},65,{"$f":"IFERROR(SMALL($BH$1:$BH$281,BD65),\"\")","v":65},{"$f":"IFERROR(INDEX($BA$1:$BA$281,$BI65,1),\"\")","v":"GP-Guadeloupe"},65,{"$f":"IFERROR(SMALL($BK$1:$BK$281,BD65),\"\")","v":65},{"$f":"IFERROR(INDEX($BA$1:$BA$281,$BL65,1),\"\")","v":"GP-Guadeloupe"},65,{"$f":"IFERROR(SMALL($BN$1:$BN$281,BD65),\"\")","v":65},{"$f":"IFERROR(INDEX($BA$1:$BA$281,$BO65,1),\"\")","v":"GP-Guadeloupe"},65,{"$f":"IFERROR(SMALL($BQ$1:$BQ$281,BD65),\"\")","v":65},{"$f":"IFERROR(INDEX($BA$1:$BA$281,$BR65,1),\"\")","v":"GP-Guadeloupe"},null,null,"950000-Repair of computers and personal and household goods","950000",{"$f":"ROWS($BW$1:BW65)","v":65},65,65,"950000-Repair of computers and personal and household goods","","",""]
[{"$nulls":52},"GQ-Equatorial Guinea",null,"GQ",{"$f":"ROWS($BA$1:BA66)","v":66},66,66,"GQ-Equatorial Guinea",66,66,"GQ-Equatorial Guinea",66,66,"GQ-Equatorial Guinea",66,66,"GQ-Equatorial Guinea",66,66,"GQ-Equatorial Guinea",null,null,"960000-Other personal service activities","960000",{"$f":"ROWS($BW$1:BW66)","v":66},66,66,"960000-Other personal service activities","","",""]
[{"$nulls":52},"GR-Greece",null,"GR",{"$f":"ROWS($BA$1:BA67)","v":67},67,67,"GR-Greece",67,67,"GR-Greece",67,67,"GR-Greece",67,67,"GR-Greece",67,67,"GR-Greece",null,null,"970000-Activities of households as employers of domestic personnel","970000",{"$f":"ROWS($BW$1:BW67)","v":67},67,67,"970000-Activities of households as employers of domestic personnel","","",""]
[{"$nulls":52},"GS-South Georgia and the South Sandwich Islands",null,"GS",{"$f":"ROWS($BA$1:BA68)","v":68},68,68,"GS-South Georgia and the South Sandwich Islands",68,68,"GS-South Georgia and the South Sandwich Islands",68,68,"GS-South Georgia and the South Sandwich Islands",68,68,"GS-South Georgia and the South Sandwich Islands",68,68,"GS-South Georgia and the South Sandwich Islands",null,null,"980000-Undifferentiated goods- and services-producing activities of private households for own use","980000",{"$f":"ROWS($BW$1:BW68)","v":68},68,68,"980000-Undifferentiated goods- and services-producing activities of private households for own use","","",""]
[{"$nulls":52},"GT-Guatemala",null,"GT",{"$f":"ROWS($BA$1:BA69)","v":69},69,69,"GT-Guatemala",69,69,"GT-Guatemala",69,69,"GT-Guatemala",69,69,"GT-Guatemala",69,69,"GT-Guatemala",null,null,"990000-Activities of extraterritorial organisations and bodies","990000",{"$f":"ROWS($BW$1:BW69)","v":69},69,69,"990000-Activities of extraterritorial organisations and bodies","","",""]
[{"$nulls":52},"GU-Guam",null,"GU",{"$f":"ROWS($BA$1:BA70)","v":70},70,70,"GU-Guam",70,70,"GU-Guam",70,70,"GU-Guam",70,70,"GU-Guam",70,70,"GU-Guam",{"$nulls":8},"","",""]
[{"$nulls":52},"GW-Guinea-Bissau",null,"GW",{"$f":"ROWS($BA$1:BA71)","v":71},71,71,"GW-Guinea-Bissau",71,71,"GW-Guinea-Bissau",71,71,"GW-Guinea-Bissau",71,71,"GW-Guinea-Bissau",71,71,"GW-Guinea-Bissau",{"$nulls":8},"","",""]
[{"$nulls":52},"GY-Guyana",null,"GY",{"$f":"ROWS($BA$1:BA72)","v":72},72,72,"GY-Guyana",72,72,"GY-Guyana",72,72,"GY-Guyana",72,72,"GY-Guyana",72,72,"GY-Guyana",{"$nulls":8},"","",""]
[{"$nulls":52},"HK-Hong Kong",null,"HK",{"$f":"ROWS($BA$1:BA73)","v":73},73,73,"HK-Hong Kong",73,73,"HK-Hong Kong",73,73,"HK-Hong Kong",73,73,"HK-Hong Kong",73,73,"HK-Hong Kong",{"$nulls":8},"","",""]
[{"$nulls":52},"HM-Heard Island and McDonald Islands",null,"HM",{"$f":"ROWS($BA$1:BA74)","v":74},74,74,"HM-Heard Island and McDonald Islands",74,74,"HM-Heard Island and McDonald Islands",74,74,"HM-Heard Island and McDonald Islands",74,74,"HM-Heard Island and McDonald Islands",74,74,"HM-Heard Island and McDonald Islands"]
[{"$nulls":52},"HN-Honduras",null,"HN",{"$f":"ROWS($BA$1:BA75)","v":75},75,75,"HN-Honduras",75,75,"HN-Honduras",75,75,"HN-Honduras",75,75,"HN-Honduras",75,75,"HN-Honduras"]
[{"$nulls":52},"HR-Croatia",null,"HR",{"$f":"ROWS($BA$1:BA76)","v":76},76,76,"HR-Croatia",76,76,"HR-Croatia",76,76,"HR-Croatia",76,76,"HR-Croatia",76,76,"HR-Croatia"]
[{"$nulls":52},"HT-Haiti",null,"HT",{"$f":"ROWS($BA$1:BA77)","v":77},77,77,"HT-Haiti",77,77,"HT-Haiti",77,77,"HT-Haiti",77,77,"HT-Haiti",77,77,"HT-Haiti"]
[{"$nulls":52},"HU-Hungary",null,"HU",{"$f":"ROWS($BA$1:BA78)","v":78},78,78,"HU-Hungary",78,78,"HU-Hungary",78,78,"HU-Hungary",78,78,"HU-Hungary",78,78,"HU-Hungary"]
[{"$nulls":52},"ID-Indonesia",null,"ID",{"$f":"ROWS($BA$1:BA79)","v":79},79,79,"ID-Indonesia",79,79,"ID-Indonesia",79,79,"ID-Indonesia",79,79,"ID-Indonesia",79,79,"ID-Indonesia"]
[{"$nulls":52},"IE-Ireland",null,"IE",{"$f":"ROWS($BA$1:BA80)","v":80},80,80,"IE-Ireland",80,80,"IE-Ireland",80,80,"IE-Ireland",80,80,"IE-Ireland",80,80,"IE-Ireland"]
[{"$nulls":52},"IL-Israel",null,"IL",{"$f":"ROWS($BA$1:BA81)","v":81},81,81,"IL-Israel",81,81,"IL-Israel",81,81,"IL-Israel",81,81,"IL-Israel",81,81,"IL-Israel"]
[{"$nulls":52},"IN-India",null,"IN",{"$f":"ROWS($BA$1:BA82)","v":82},82,82,"IN-India",82,82,"IN-India",82,82,"IN-India",82,82,"IN-India",82,82,"IN-India"]
[{"$nulls":52},"IO-British Indian Ocean Territory",null,"IO",{"$f":"ROWS($BA$1:BA83)","v":83},83,83,"IO-British Indian Ocean Territory",83,83,"IO-British Indian Ocean Territory",83,83,"IO-British Indian Ocean Territory",83,83,"IO-British Indian Ocean Territory",83,83,"IO-British Indian Ocean Territory"]
[{"$nulls":52},"IQ-Iraq",null,"IQ",{"$f":"ROWS($BA$1:BA84)","v":84},84,84,"IQ-Iraq",84,84,"IQ-Iraq",84,84,"IQ-Iraq",84,84,"IQ-Iraq",84,84,"IQ-Iraq"]
[{"$nulls":52},"IR-Iran, Islamic Republic of",null,"IR",{"$f":"ROWS($BA$1:BA85)","v":85},85,85,"IR-Iran, Islamic Republic of",85,85,"IR-Iran, Islamic Republic of",85,85,"IR-Iran, Islamic Republic of",85,85,"IR-Iran, Islamic Republic of",85,85,"IR-Iran, Islamic Republic of"]
[{"$nulls":52},"IS-Iceland",null,"IS",{"$f":"ROWS($BA$1:BA86)","v":86},86,86,"IS-Iceland",86,86,"IS-Iceland",86,86,"IS-Iceland",86,86,"IS-Iceland",86,86,"IS-Iceland"]
[{"$nulls":52},"IT-Italy",null,"IT",{"$f":"ROWS($BA$1:BA87)","v":87},87,87,"IT-Italy",87,87,"IT-Italy",87,87,"IT-Italy",87,87,"IT-Italy",87,87,"IT-Italy"]
[{"$nulls":52},"JM-Jamaica",null,"JM",{"$f":"ROWS($BA$1:BA88)","v":88},88,88,"JM-Jamaica",88,88,"JM-Jamaica",88,88,"JM-Jamaica",88,88,"JM-Jamaica",88,88,"JM-Jamaica"]
[{"$nulls":52},"JO-Jordan",null,"JO",{"$f":"ROWS($BA$1:BA89)","v":89},89,89,"JO-Jordan",89,89,"JO-Jordan",89,89,"JO-Jordan",89,89,"JO-Jordan",89,89,"JO-Jordan"]
[{"$nulls":52},"JP-Japan",null,"JP",{"$f":"ROWS($BA$1:BA90)","v":90},90,90,"JP-Japan",90,90,"JP-Japan",90,90,"JP-Japan",90,90,"JP-Japan",90,90,"JP-Japan"]
[{"$nulls":52},"KE-Kenya",null,"KE",{"$f":"ROWS($BA$1:BA91)","v":91},91,91,"KE-Kenya",91,91,"KE-Kenya",91,91,"KE-Kenya",91,91,"KE-Kenya",91,91,"KE-Kenya"]
[{"$nulls":52},"KG-Kyrgyzstan",null,"KG",{"$f":"ROWS($BA$1:BA92)","v":92},92,92,"KG-Kyrgyzstan",92,92,"KG-Kyrgyzstan",92,92,"KG-Kyrgyzstan",92,92,"KG-Kyrgyzstan",92,92,"KG-Kyrgyzstan"]
[{"$nulls":52},"KH-Cambodia",null,"KH",{"$f":"ROWS($BA$1:BA93)","v":93},93,93,"KH-Cambodia",93,93,"KH-Cambodia",93,93,"KH-Cambodia",93,93,"KH-Cambodia",93,93,"KH-Cambodia"]
[{"$nulls":52},"KI-Kiribati",null,"KI",{"$f":"ROWS($BA$1:BA94)","v":94},94,94,"KI-Kiribati",94,94,"KI-Kiribati",94,94,"KI-Kiribati",94,94,"KI-Kiribati",94,94,"KI-Kiribati"]
[{"$nulls":52},"KM-Comoros",null,"KM",{"$f":"ROWS($BA$1:BA95)","v":95},95,95,"KM-Comoros",95,95,"KM-Comoros",95,95,"KM-Comoros",95,95,"KM-Comoros",95,95,"KM-Comoros"]
[{"$nulls":52},"KN-Saint Kitts and Nevis",null,"KN",{"$f":"ROWS($BA$1:BA96)","v":96},96,96,"KN-Saint Kitts and Nevis",96,96,"KN-Saint Kitts and Nevis",96,96,"KN-Saint Kitts and Nevis",96,96,"KN-Saint Kitts and Nevis",96,96,"KN-Saint Kitts and Nevis"]
[{"$nulls":52},"KP-Korea, Democratic People's Republic of",null,"KP",{"$f":"ROWS($BA$1:BA97)","v":97},97,97,"KP-Korea, Democratic People's Republic of",97,97,"KP-Korea, Democratic People's Republic of",97,97,"KP-Korea, Democratic People's Republic of",97,97,"KP-Korea, Democratic People's Republic of",97,97,"KP-Korea, Democratic People's Republic of"]
[{"$nulls":52},"KR-Korea, Republic of",null,"KR",{"$f":"ROWS($BA$1:BA98)","v":98},98,98,"KR-Korea, Republic of",98,98,"KR-Korea, Republic of",98,98,"KR-Korea, Republic of",98,98,"KR-Korea, Republic of",98,98,"KR-Korea, Republic of"]
[{"$nulls":52},"KW-Kuwait",null,"KW",{"$f":"ROWS($BA$1:BA99)","v":99},99,99,"KW-Kuwait",99,99,"KW-Kuwait",99,99,"KW-Kuwait",99,99,"KW-Kuwait",99,99,"KW-Kuwait"]
[{"$nulls":52},"KY-Cayman Islands",null,"KY",{"$f":"ROWS($BA$1:BA100)","v":100},100,100,"KY-Cayman Islands",100,100,"KY-Cayman Islands",100,100,"KY-Cayman Islands",100,100,"KY-Cayman Islands",100,100,"KY-Cayman Islands"]
[{"$nulls":52},"KZ-Kazakhstan",null,"KZ",{"$f":"ROWS($BA$1:BA101)","v":101},101,101,"KZ-Kazakhstan",101,101,"KZ-Kazakhstan",101,101,"KZ-Kazakhstan",101,101,"KZ-Kazakhstan",101,101,"KZ-Kazakhstan"]
[{"$nulls":52},"LA-Lao People's Democratic Republic",null,"LA",{"$f":"ROWS($BA$1:BA102)","v":102},102,102,"LA-Lao People's Democratic Republic",102,102,"LA-Lao People's Democratic Republic",102,102,"LA-Lao People's Democratic Republic",102,102,"LA-Lao People's Democratic Republic",102,102,"LA-Lao People's Democratic Republic"]
[{"$nulls":52},"LB-Lebanon",null,"LB",{"$f":"ROWS($BA$1:BA103)","v":103},103,103,"LB-Lebanon",103,103,"LB-Lebanon",103,103,"LB-Lebanon",103,103,"LB-Lebanon",103,103,"LB-Lebanon"]
[{"$nulls":52},"LC-Saint Lucia",null,"LC",{"$f":"ROWS($BA$1:BA104)","v":104},104,104,"LC-Saint Lucia",104,104,"LC-Saint Lucia",104,104,"LC-Saint Lucia",104,104,"LC-Saint Lucia",104,104,"LC-Saint Lucia"]
[{"$nulls":52},"LI-Liechtenstein",null,"LI",{"$f":"ROWS($BA$1:BA105)","v":105},105,105,"LI-Liechtenstein",105,105,"LI-Liechtenstein",105,105,"LI-Liechtenstein",105,105,"LI-Liechtenstein",105,105,"LI-Liechtenstein"]
[{"$nulls":52},"LK-Sri Lanka",null,"LK",{"$f":"ROWS($BA$1:BA106)","v":106},106,106,"LK-Sri Lanka",106,106,"LK-Sri Lanka",106,106,"LK-Sri Lanka",106,106,"LK-Sri Lanka",106,106,"LK-Sri Lanka"]
[{"$nulls":52},"LR-Liberia",null,"LR",{"$f":"ROWS($BA$1:BA107)","v":107},107,107,"LR-Liberia",107,107,"LR-Liberia",107,107,"LR-Liberia",107,107,"LR-Liberia",107,107,"LR-Liberia"]
[{"$nulls":52},"LS-Lesotho",null,"LS",{"$f":"ROWS($BA$1:BA108)","v":108},108,108,"LS-Lesotho",108,108,"LS-Lesotho",108,108,"LS-Lesotho",108,108,"LS-Lesotho",108,108,"LS-Lesotho"]
[{"$nulls":52},"LT-Lithuania",null,"LT",{"$f":"ROWS($BA$1:BA109)","v":109},109,109,"LT-Lithuania",109,109,"LT-Lithuania",109,109,"LT-Lithuania",109,109,"LT-Lithuania",109,109,"LT-Lithuania"]
[{"$nulls":52},"LU-Luxembourg",null,"LU",{"$f":"ROWS($BA$1:BA110)","v":110},{"$f":"IF(ISNUMBER(SEARCH(ListPIlietybe,BA110,1)),BD110,\"\")","v":110},110,"LU-Luxembourg",{"$f":"IF(ISNUMBER(SEARCH(LISTKILME,BA110,1)),BD110,\"\")","v":110},110,"LU-Luxembourg",{"$f":"IF(ISNUMBER(SEARCH(LISTDOKSALIS,BA110,1)),BD110,\"\")","v":110},110,"LU-Luxembourg",{"$f":"IF(ISNUMBER(SEARCH(LISTU3COUNTY,BA110,1)),BD110,\"\")","v":110},110,"LU-Luxembourg",{"$f":"IF(ISNUMBER(SEARCH(LISTSDSALIS,BA110,1)),BD110,\"\")","v":110},110,"LU-Luxembourg"]
[{"$nulls":52},"LV-Latvia",null,"LV",{"$f":"ROWS($BA$1:BA111)","v":111},111,111,"LV-Latvia",111,111,"LV-Latvia",111,111,"LV-Latvia",111,111,"LV-Latvia",111,111,"LV-Latvia"]
[{"$nulls":52},"LX-Obsolete see LT territory",null,"LX",{"$f":"ROWS($BA$1:BA112)","v":112},112,112,"LX-Obsolete see LT territory",112,112,"LX-Obsolete see LT territory",112,112,"LX-Obsolete see LT territory",112,112,"LX-Obsolete see LT territory",112,112,"LX-Obsolete see LT territory"]
[{"$nulls":52},"LY-Libya",null,"LY",{"$f":"ROWS($BA$1:BA113)","v":113},113,113,"LY-Libya",113,113,"LY-Libya",113,113,"LY-Libya",113,113,"LY-Libya",113,113,"LY-Libya"]
[{"$nulls":52},"MA-Morocco",null,"MA",{"$f":"ROWS($BA$1:BA114)","v":114},114,114,"MA-Morocco",114,114,"MA-Morocco",114,114,"MA-Morocco",114,114,"MA-Morocco",114,114,"MA-Morocco"]
[{"$nulls":52},"MC-Monaco",null,"MC",{"$f":"ROWS($BA$1:BA115)","v":115},115,115,"MC-Monaco",115,115,"MC-Monaco",115,115,"MC-Monaco",115,115,"MC-Monaco",115,115,"MC-Monaco"]
[{"$nulls":52},"MD-Moldova, Republic of",null,"MD",{"$f":"ROWS($BA$1:BA116)","v":116},116,116,"MD-Moldova, Republic of",116,116,"MD-Moldova, Republic of",116,116,"MD-Moldova, Republic of",116,116,"MD-Moldova, Republic of",116,116,"MD-Moldova, Republic of"]
[{"$nulls":52},"MG-Madagascar",null,"MG",{"$f":"ROWS($BA$1:BA117)","v":117},117,117,"MG-Madagascar",117,117,"MG-Madagascar",117,117,"MG-Madagascar",117,117,"MG-Madagascar",117,117,"MG-Madagascar"]
[{"$nulls":52},"MH-Marshall Islands",null,"MH",{"$f":"ROWS($BA$1:BA118)","v":118},118,118,"MH-Marshall Islands",118,118,"MH-Marshall Islands",118,118,"MH-Marshall Islands",118,118,"MH-Marshall Islands",118,118,"MH-Marshall Islands"]
[{"$nulls":52},"MK-Macedonia, The Former Yugoslav Republic of",null,"MK",{"$f":"ROWS($BA$1:BA119)","v":119},119,119,"MK-Macedonia, The Former Yugoslav Republic of",119,119,"MK-Macedonia, The Former Yugoslav Republic of",119,119,"MK-Macedonia, The Former Yugoslav Republic of",119,119,"MK-Macedonia, The Former Yugoslav Republic of",119,119,"MK-Macedonia, The Former Yugoslav Republic of"]
[{"$nulls":52},"ML-Mali",null,"ML",{"$f":"ROWS($BA$1:BA120)","v":120},120,120,"ML-Mali",120,120,"ML-Mali",120,120,"ML-Mali",120,120,"ML-Mali",120,120,"ML-Mali"]
[{"$nulls":52},"MM-Myanmar",null,"MM",{"$f":"ROWS($BA$1:BA121)","v":121},121,121,"MM-Myanmar",121,121,"MM-Myanmar",121,121,"MM-Myanmar",121,121,"MM-Myanmar",121,121,"MM-Myanmar"]
[{"$nulls":52},"MN-Mongolia",null,"MN",{"$f":"ROWS($BA$1:BA122)","v":122},122,122,"MN-Mongolia",122,122,"MN-Mongolia",122,122,"MN-Mongolia",122,122,"MN-Mongolia",122,122,"MN-Mongolia"]
[{"$nulls":52},"MO-Macao",null,"MO",{"$f":"ROWS($BA$1:BA123)","v":123},123,123,"MO-Macao",123,123,"MO-Macao",123,123,"MO-Macao",123,123,"MO-Macao",123,123,"MO-Macao"]
[{"$nulls":52},"MP-Northern Mariana Islands",null,"MP",{"$f":"ROWS($BA$1:BA124)","v":124},124,124,"MP-Northern Mariana Islands",124,124,"MP-Northern Mariana Islands",124,124,"MP-Northern Mariana Islands",124,124,"MP-Northern Mariana Islands",124,124,"MP-Northern Mariana Islands"]
[{"$nulls":52},"MQ-Martinique",null,"MQ",{"$f":"ROWS($BA$1:BA125)","v":125},125,125,"MQ-Martinique",125,125,"MQ-Martinique",125,125,"MQ-Martinique",125,125,"MQ-Martinique",125,125,"MQ-Martinique"]
[{"$nulls":52},"MR-Mauritania",null,"MR",{"$f":"ROWS($BA$1:BA126)","v":126},126,126,"MR-Mauritania",126,126,"MR-Mauritania",126,126,"MR-Mauritania",126,126,"MR-Mauritania",126,126,"MR-Mauritania"]
[{"$nulls":52},"MS-Montserrat",null,"MS",{"$f":"ROWS($BA$1:BA127)","v":127},127,127,"MS-Montserrat",127,127,"MS-Montserrat",127,127,"MS-Montserrat",127,127,"MS-Montserrat",127,127,"MS-Montserrat"]
[{"$nulls":52},"MT-Malta",null,"MT",{"$f":"ROWS($BA$1:BA128)","v":128},128,128,"MT-Malta",128,128,"MT-Malta",128,128,"MT-Malta",128,128,"MT-Malta",128,128,"MT-Malta"]
[{"$nulls":52},"MU-Mauritius",null,"MU",{"$f":"ROWS($BA$1:BA129)","v":129},129,{"$f":"IFERROR(SMALL($BE$1:$BE$281,BD129),\"\")","v":129},{"$f":"IFERROR(INDEX($BA$1:$BA$281,$BF129,1),\"\")","v":"MU-Mauritius"},129,{"$f":"IFERROR(SMALL($BH$1:$BH$281,BD129),\"\")","v":129},{"$f":"IFERROR(INDEX($BA$1:$BA$281,$BI129,1),\"\")","v":"MU-Mauritius"},129,{"$f":"IFERROR(SMALL($BK$1:$BK$281,BD129),\"\")","v":129},{"$f":"IFERROR(INDEX($BA$1:$BA$281,$BL129,1),\"\")","v":"MU-Mauritius"},129,{"$f":"IFERROR(SMALL($BN$1:$BN$281,BD129),\"\")","v":129},{"$f":"IFERROR(INDEX($BA$1:$BA$281,$BO129,1),\"\")","v":"MU-Mauritius"},129,{"$f":"IFERROR(SMALL($BQ$1:$BQ$281,BD129),\"\")","v":129},{"$f":"IFERROR(INDEX($BA$1:$BA$281,$BR129,1),\"\")","v":"MU-Mauritius"}]
[{"$nulls":52},"MV-Maldives",null,"MV",{"$f":"ROWS($BA$1:BA130)","v":130},130,130,"MV-Maldives",130,130,"MV-Maldives",130,130,"MV-Maldives",130,130,"MV-Maldives",130,130,"MV-Maldives"]
[{"$nulls":52},"MW-Malawi",null,"MW",{"$f":"ROWS($BA$1:BA131)","v":131},131,131,"MW-Malawi",131,131,"MW-Malawi",131,131,"MW-Malawi",131,131,"MW-Malawi",131,131,"MW-Malawi"]
[{"$nulls":52},"MX-Mexico",null,"MX",{"$f":"ROWS($BA$1:BA132)","v":132},132,132,"MX-Mexico",132,132,"MX-Mexico",132,132,"MX-Mexico",132,132,"MX-Mexico",132,132,"MX-Mexico"]
[{"$nulls":52},"MY-Malaysia",null,"MY",{"$f":"ROWS($BA$1:BA133)","v":133},133,133,"MY-Malaysia",133,133,"MY-Malaysia",133,133,"MY-Malaysia",133,133,"MY-Malaysia",133,133,"MY-Malaysia"]
[{"$nulls":52},"MZ-Mozambique",null,"MZ",{"$f":"ROWS($BA$1:BA134)","v":134},134,134,"MZ-Mozambique",134,134,"MZ-Mozambique",134,134,"MZ-Mozambique",134,134,"MZ-Mozambique",134,134,"MZ-Mozambique"]
[{"$nulls":52},"NA-Namibia",null,"NA",{"$f":"ROWS($BA$1:BA135)","v":135},135,135,"NA-Namibia",135,135,"NA-Namibia",135,135,"NA-Namibia",135,135,"NA-Namibia",135,135,"NA-Namibia"]
[{"$nulls":52},"NC-New Caledonia",null,"NC",{"$f":"ROWS($BA$1:BA136)","v":136},136,136,"NC-New Caledonia",136,136,"NC-New Caledonia",136,136,"NC-New Caledonia",136,136,"NC-New Caledonia",136,136,"NC-New Caledonia"]
[{"$nulls":52},"NE-Niger",null,"NE",{"$f":"ROWS($BA$1:BA137)","v":137},137,137,"NE-Niger",137,137,"NE-Niger",137,137,"NE-Niger",137,137,"NE-Niger",137,137,"NE-Niger"]
[{"$nulls":52},"NF-Norfolk Island",null,"NF",{"$f":"ROWS($BA$1:BA138)","v":138},138,138,"NF-Norfolk Island",138,138,"NF-Norfolk Island",138,138,"NF-Norfolk Island",138,138,"NF-Norfolk Island",138,138,"NF-Norfolk Island"]
[{"$nulls":52},"NG-Nigeria",null,"NG",{"$f":"ROWS($BA$1:BA139)","v":139},139,139,"NG-Nigeria",139,139,"NG-Nigeria",139,139,"NG-Nigeria",139,139,"NG-Nigeria",139,139,"NG-Nigeria"]
[{"$nulls":52},"NI-Nicaragua",null,"NI",{"$f":"ROWS($BA$1:BA140)","v":140},140,140,"NI-Nicaragua",140,140,"NI-Nicaragua",140,140,"NI-Nicaragua",140,140,"NI-Nicaragua",140,140,"NI-Nicaragua"]
[{"$nulls":52},"NL-Netherlands",null,"NL",{"$f":"ROWS($BA$1:BA141)","v":141},141,141,"NL-Netherlands",141,141,"NL-Netherlands",141,141,"NL-Netherlands",141,141,"NL-Netherlands",141,141,"NL-Netherlands"]
[{"$nulls":52},"NO-Norway",null,"NO",{"$f":"ROWS($BA$1:BA142)","v":142},142,142,"NO-Norway",142,142,"NO-Norway",142,142,"NO-Norway",142,142,"NO-Norway",142,142,"NO-Norway"]
[{"$nulls":52},"NP-Nepal",null,"NP",{"$f":"ROWS($BA$1:BA143)","v":143},143,143,"NP-Nepal",143,143,"NP-Nepal",143,143,"NP-Nepal",143,143,"NP-Nepal",143,143,"NP-Nepal"]
[{"$nulls":52},"NR-Nauru",null,"NR",{"$f":"ROWS($BA$1:BA144)","v":144},144,144,"NR-Nauru",144,144,"NR-Nauru",144,144,"NR-Nauru",144,144,"NR-Nauru",144,144,"NR-Nauru"]
[{"$nulls":52},"NU-Niue",null,"NU",{"$f":"ROWS($BA$1:BA145)","v":145},145,145,"NU-Niue",145,145,"NU-Niue",145,145,"NU-Niue",145,145,"NU-Niue",145,145,"NU-Niue"]
[{"$nulls":52},"NZ-New Zealand",null,"NZ",{"$f":"ROWS($BA$1:BA146)","v":146},146,146,"NZ-New Zealand",146,146,"NZ-New Zealand",146,146,"NZ-New Zealand",146,146,"NZ-New Zealand",146,146,"NZ-New Zealand"]
[{"$nulls":52},"OM-Oman",null,"OM",{"$f":"ROWS($BA$1:BA147)","v":147},147,147,"OM-Oman",147,147,"OM-Oman",147,147,"OM-Oman",147,147,"OM-Oman",147,147,"OM-Oman"]
[{"$nulls":52},"PA-Panama",null,"PA",{"$f":"ROWS($BA$1:BA148)","v":148},148,148,"PA-Panama",148,148,"PA-Panama",148,148,"PA-Panama",148,148,"PA-Panama",148,148,"PA-Panama"]
[{"$nulls":52},"PE-Peru",null,"PE",{"$f":"ROWS($BA$1:BA149)","v":149},149,149,"PE-Peru",149,149,"PE-Peru",149,149,"PE-Peru",149,149,"PE-Peru",149,149,"PE-Peru"]
[{"$nulls":52},"PF-French Polynesia",null,"PF",{"$f":"ROWS($BA$1:BA150)","v":150},150,150,"PF-French Polynesia",150,150,"PF-French Polynesia",150,150,"PF-French Polynesia",150,150,"PF-French Polynesia",150,150,"PF-French Polynesia"]
[{"$nulls":52},"PG-Papua New Guinea",null,"PG",{"$f":"ROWS($BA$1:BA151)","v":151},151,151,"PG-Papua New Guinea",151,151,"PG-Papua New Guinea",151,151,"PG-Papua New Guinea",151,151,"PG-Papua New Guinea",151,151,"PG-Papua New Guinea"]
[{"$nulls":52},"PH-Philippines",null,"PH",{"$f":"ROWS($BA$1:BA152)","v":152},152,152,"PH-Philippines",152,152,"PH-Philippines",152,152,"PH-Philippines",152,152,"PH-Philippines",152,152,"PH-Philippines"]
[{"$nulls":52},"PK-Pakistan",null,"PK",{"$f":"ROWS($BA$1:BA153)","v":153},153,153,"PK-Pakistan",153,153,"PK-Pakistan",153,153,"PK-Pakistan",153,153,"PK-Pakistan",153,153,"PK-Pakistan"]
[{"$nulls":52},"PL-Poland",null,"PL",{"$f":"ROWS($BA$1:BA154)","v":154},154,154,"PL-Poland",154,154,"PL-Poland",154,154,"PL-Poland",154,154,"PL-Poland",154,154,"PL-Poland"]
[{"$nulls":52},"PM-Saint Pierre and Miquelon",null,"PM",{"$f":"ROWS($BA$1:BA155)","v":155},155,155,"PM-Saint Pierre and Miquelon",155,155,"PM-Saint Pierre and Miquelon",155,155,"PM-Saint Pierre and Miquelon",155,155,"PM-Saint Pierre and Miquelon",155,155,"PM-Saint Pierre and Miquelon"]
[{"$nulls":52},"PN-Pitcairn",null,"PN",{"$f":"ROWS($BA$1:BA156)","v":156},156,156,"PN-Pitcairn",156,156,"PN-Pitcairn",156,156,"PN-Pitcairn",156,156,"PN-Pitcairn",156,156,"PN-Pitcairn"]
[{"$nulls":52},"PR-Puerto Rico",null,"PR",{"$f":"ROWS($BA$1:BA157)","v":157},157,157,"PR-Puerto Rico",157,157,"PR-Puerto Rico",157,157,"PR-Puerto Rico",157,157,"PR-Puerto Rico",157,157,"PR-Puerto Rico"]
[{"$nulls":52},"PS-Palestine, State of",null,"PS",{"$f":"ROWS($BA$1:BA158)","v":158},158,158,"PS-Palestine, State of",158,158,"PS-Palestine, State of",158,158,"PS-Palestine, State of",158,158,"PS-Palestine, State of",158,158,"PS-Palestine, State of"]
[{"$nulls":52},"PT-Portugal",null,"PT",{"$f":"ROWS($BA$1:BA159)","v":159},159,159,"PT-Portugal",159,159,"PT-Portugal",159,159,"PT-Portugal",159,159,"PT-Portugal",159,159,"PT-Portugal"]
[{"$nulls":52},"PW-Palau",null,"PW",{"$f":"ROWS($BA$1:BA160)","v":160},160,160,"PW-Palau",160,160,"PW-Palau",160,160,"PW-Palau",160,160,"PW-Palau",160,160,"PW-Palau"]
[{"$nulls":52},"PY-Paraguay",null,"PY",{"$f":"ROWS($BA$1:BA161)","v":161},161,161,"PY-Paraguay",161,161,"PY-Paraguay",161,161,"PY-Paraguay",161,161,"PY-Paraguay",161,161,"PY-Paraguay"]
[{"$nulls":52},"QA-Qatar",null,"QA",{"$f":"ROWS($BA$1:BA162)","v":162},162,162,"QA-Qatar",162,162,"QA-Qatar",162,162,"QA-Qatar",162,162,"QA-Qatar",162,162,"QA-Qatar"]
[{"$nulls":52},"RE-Reunion",null,"RE",{"$f":"ROWS($BA$1:BA163)","v":163},163,163,"RE-Reunion",163,163,"RE-Reunion",163,163,"RE-Reunion",163,163,"RE-Reunion",163,163,"RE-Reunion"]
[{"$nulls":52},"RO-Romania",null,"RO",{"$f":"ROWS($BA$1:BA164)","v":164},164,164,"RO-Romania",164,164,"RO-Romania",164,164,"RO-Romania",164,164,"RO-Romania",164,164,"RO-Romania"]
[{"$nulls":52},"RU-Russian Federation",null,"RU",{"$f":"ROWS($BA$1:BA165)","v":165},165,165,"RU-Russian Federation",165,165,"RU-Russian Federation",165,165,"RU-Russian Federation",165,165,"RU-Russian Federation",165,165,"RU-Russian Federation"]
[{"$nulls":52},"RW-Rwanda",null,"RW",{"$f":"ROWS($BA$1:BA166)","v":166},166,166,"RW-Rwanda",166,166,"RW-Rwanda",166,166,"RW-Rwanda",166,166,"RW-Rwanda",166,166,"RW-Rwanda"]
[{"$nulls":52},"SA-Saudi Arabia",null,"SA",{"$f":"ROWS($BA$1:BA167)","v":167},167,167,"SA-Saudi Arabia",167,167,"SA-Saudi Arabia",167,167,"SA-Saudi Arabia",167,167,"SA-Saudi Arabia",167,167,"SA-Saudi Arabia"]
[{"$nulls":52},"SB-Solomon Islands",null,"SB",{"$f":"ROWS($BA$1:BA168)","v":168},168,168,"SB-Solomon Islands",168,168,"SB-Solomon Islands",168,168,"SB-Solomon Islands",168,168,"SB-Solomon Islands",168,168,"SB-Solomon Islands"]
[{"$nulls":52},"SC-Seychelles",null,"SC",{"$f":"ROWS($BA$1:BA169)","v":169},169,169,"SC-Seychelles",169,169,"SC-Seychelles",169,169,"SC-Seychelles",169,169,"SC-Seychelles",169,169,"SC-Seychelles"]
[{"$nulls":52},"SD-Sudan",null,"SD",{"$f":"ROWS($BA$1:BA170)","v":170},170,170,"SD-Sudan",170,170,"SD-Sudan",170,170,"SD-Sudan",170,170,"SD-Sudan",170,170,"SD-Sudan"]
[{"$nulls":52},"SE-Sweden",null,"SE",{"$f":"ROWS($BA$1:BA171)","v":171},171,171,"SE-Sweden",171,171,"SE-Sweden",171,171,"SE-Sweden",171,171,"SE-Sweden",171,171,"SE-Sweden"]
[{"$nulls":52},"SG-Singapore",null,"SG",{"$f":"ROWS($BA$1:BA172)","v":172},172,172,"SG-Singapore",172,172,"SG-Singapore",172,172,"SG-Singapore",172,172,"SG-Singapore",172,172,"SG-Singapore"]
[{"$nulls":52},"SH-Saint Helena, Ascension and Tristan da Cunha",null,"SH",{"$f":"ROWS($BA$1:BA173)","v":173},173,173,"SH-Saint Helena, Ascension and Tristan da Cunha",173,173,"SH-Saint Helena, Ascension and Tristan da Cunha",173,173,"SH-Saint Helena, Ascension and Tristan da Cunha",173,173,"SH-Saint Helena, Ascension and Tristan da Cunha",173,173,"SH-Saint Helena, Ascension and Tristan da Cunha"]
[{"$nulls":52},"SI-Slovenia",null,"SI",{"$f":"ROWS($BA$1:BA174)","v":174},{"$f":"IF(ISNUMBER(SEARCH(ListPIlietybe,BA174,1)),BD174,\"\")","v":174},174,"SI-Slovenia",{"$f":"IF(ISNUMBER(SEARCH(LISTKILME,BA174,1)),BD174,\"\")","v":174},174,"SI-Slovenia",{"$f":"IF(ISNUMBER(SEARCH(LISTDOKSALIS,BA174,1)),BD174,\"\")","v":174},174,"SI-Slovenia",{"$f":"IF(ISNUMBER(SEARCH(LISTU3COUNTY,BA174,1)),BD174,\"\")","v":174},174,"SI-Slovenia",{"$f":"IF(ISNUMBER(SEARCH(LISTSDSALIS,BA174,1)),BD174,\"\")","v":174},174,"SI-Slovenia"]
[{"$nulls":52},"SJ-Svalbard and Jan Mayen",null,"SJ",{"$f":"ROWS($BA$1:BA175)","v":175},175,175,"SJ-Svalbard and Jan Mayen",175,175,"SJ-Svalbard and Jan Mayen",175,175,"SJ-Svalbard and Jan Mayen",175,175,"SJ-Svalbard and Jan Mayen",175,175,"SJ-Svalbard and Jan Mayen"]
[{"$nulls":52},"SK-Slovakia",null,"SK",{"$f":"ROWS($BA$1:BA176)","v":176},176,176,"SK-Slovakia",176,176,"SK-Slovakia",176,176,"SK-Slovakia",176,176,"SK-Slovakia",176,176,"SK-Slovakia"]
[{"$nulls":52},"SL-Sierra Leone",null,"SL",{"$f":"ROWS($BA$1:BA177)","v":177},177,177,"SL-Sierra Leone",177,177,"SL-Sierra Leone",177,177,"SL-Sierra Leone",177,177,"SL-Sierra Leone",177,177,"SL-Sierra Leone"]
[{"$nulls":52},"SM-San Marino",null,"SM",{"$f":"ROWS($BA$1:BA178)","v":178},178,178,"SM-San Marino",178,178,"SM-San Marino",178,178,"SM-San Marino",178,178,"SM-San Marino",178,178,"SM-San Marino"]
[{"$nulls":52},"SN-Senegal",null,"SN",{"$f":"ROWS($BA$1:BA179)","v":179},179,179,"SN-Senegal",179,179,"SN-Senegal",179,179,"SN-Senegal",179,179,"SN-Senegal",179,179,"SN-Senegal"]
[{"$nulls":52},"SO-Somalia",null,"SO",{"$f":"ROWS($BA$1:BA180)","v":180},180,180,"SO-Somalia",180,180,"SO-Somalia",180,180,"SO-Somalia",180,180,"SO-Somalia",180,180,"SO-Somalia"]
[{"$nulls":52},"SR-Suriname",null,"SR",{"$f":"ROWS($BA$1:BA181)","v":181},181,181,"SR-Suriname",181,181,"SR-Suriname",181,181,"SR-Suriname",181,181,"SR-Suriname",181,181,"SR-Suriname"]
[{"$nulls":52},"ST-Sao Tome and Principe",null,"ST",{"$f":"ROWS($BA$1:BA182)","v":182},182,182,"ST-Sao Tome and Principe",182,182,"ST-Sao Tome and Principe",182,182,"ST-Sao Tome and Principe",182,182,"ST-Sao Tome and Principe",182,182,"ST-Sao Tome and Principe"]
[{"$nulls":52},"SV-El Salvador",null,"SV",{"$f":"ROWS($BA$1:BA183)","v":183},183,183,"SV-El Salvador",183,183,"SV-El Salvador",183,183,"SV-El Salvador",183,183,"SV-El Salvador",183,183,"SV-El Salvador"]
[{"$nulls":52},"SY-Syrian Arab Republic",null,"SY",{"$f":"ROWS($BA$1:BA184)","v":184},184,184,"SY-Syrian Arab Republic",184,184,"SY-Syrian Arab Republic",184,184,"SY-Syrian Arab Republic",184,184,"SY-Syrian Arab Republic",184,184,"SY-Syrian Arab Republic"]
[{"$nulls":52},"SZ-Swaziland",null,"SZ",{"$f":"ROWS($BA$1:BA185)","v":185},185,185,"SZ-Swaziland",185,185,"SZ-Swaziland",185,185,"SZ-Swaziland",185,185,"SZ-Swaziland",185,185,"SZ-Swaziland"]
[{"$nulls":52},"TC-Turks and Caicos Islands",null,"TC",{"$f":"ROWS($BA$1:BA186)","v":186},186,186,"TC-Turks and Caicos Islands",186,186,"TC-Turks and Caicos Islands",186,186,"TC-Turks and Caicos Islands",186,186,"TC-Turks and Caicos Islands",186,186,"TC-Turks and Caicos Islands"]
[{"$nulls":52},"TD-Chad",null,"TD",{"$f":"ROWS($BA$1:BA187)","v":187},187,187,"TD-Chad",187,187,"TD-Chad",187,187,"TD-Chad",187,187,"TD-Chad",187,187,"TD-Chad"]
[{"$nulls":52},"TF-French Southern Territories",null,"TF",{"$f":"ROWS($BA$1:BA188)","v":188},188,188,"TF-French Southern Territories",188,188,"TF-French Southern Territories",188,188,"TF-French Southern Territories",188,188,"TF-French Southern Territories",188,188,"TF-French Southern Territories"]
[{"$nulls":52},"TG-Togo",null,"TG",{"$f":"ROWS($BA$1:BA189)","v":189},189,189,"TG-Togo",189,189,"TG-Togo",189,189,"TG-Togo",189,189,"TG-Togo",189,189,"TG-Togo"]
[{"$nulls":52},"TH-Thailand",null,"TH",{"$f":"ROWS($BA$1:BA190)","v":190},190,190,"TH-Thailand",190,190,"TH-Thailand",190,190,"TH-Thailand",190,190,"TH-Thailand",190,190,"TH-Thailand"]
[{"$nulls":52},"TJ-Tajikistan",null,"TJ",{"$f":"ROWS($BA$1:BA191)","v":191},191,191,"TJ-Tajikistan",191,191,"TJ-Tajikistan",191,191,"TJ-Tajikistan",191,191,"TJ-Tajikistan",191,191,"TJ-Tajikistan"]
[{"$nulls":52},"TK-Tokelau",null,"TK",{"$f":"ROWS($BA$1:BA192)","v":192},192,192,"TK-Tokelau",192,192,"TK-Tokelau",192,192,"TK-Tokelau",192,192,"TK-Tokelau",192,192,"TK-Tokelau"]
[{"$nulls":52},"TM-Turkmenistan",null,"TM",{"$f":"ROWS($BA$1:BA193)","v":193},193,{"$f":"IFERROR(SMALL($BE$1:$BE$281,BD193),\"\")","v":193},{"$f":"IFERROR(INDEX($BA$1:$BA$281,$BF193,1),\"\")","v":"TM-Turkmenistan"},193,{"$f":"IFERROR(SMALL($BH$1:$BH$281,BD193),\"\")","v":193},{"$f":"IFERROR(INDEX($BA$1:$BA$281,$BI193,1),\"\")","v":"TM-Turkmenistan"},193,{"$f":"IFERROR(SMALL($BK$1:$BK$281,BD193),\"\")","v":193},{"$f":"IFERROR(INDEX($BA$1:$BA$281,$BL193,1),\"\")","v":"TM-Turkmenistan"},193,{"$f":"IFERROR(SMALL($BN$1:$BN$281,BD193),\"\")","v":193},{"$f":"IFERROR(INDEX($BA$1:$BA$281,$BO193,1),\"\")","v":"TM-Turkmenistan"},193,{"$f":"IFERROR(SMALL($BQ$1:$BQ$281,BD193),\"\")","v":193},{"$f":"IFERROR(INDEX($BA$1:$BA$281,$BR193,1),\"\")","v":"TM-Turkmenistan"}]
[{"$nulls":52},"TN-Tunisia",null,"TN",{"$f":"ROWS($BA$1:BA194)","v":194},194,194,"TN-Tunisia",194,194,"TN-Tunisia",194,194,"TN-Tunisia",194,194,"TN-Tunisia",194,194,"TN-Tunisia"]
[{"$nulls":52},"TO-Tonga",null,"TO",{"$f":"ROWS($BA$1:BA195)","v":195},195,195,"TO-Tonga",195,195,"TO-Tonga",195,195,"TO-Tonga",195,195,"TO-Tonga",195,195,"TO-Tonga"]
[{"$nulls":52},"TP-Obsolete see TL territory",null,"TP",{"$f":"ROWS($BA$1:BA196)","v":196},196,196,"TP-Obsolete see TL territory",196,196,"TP-Obsolete see TL territory",196,196,"TP-Obsolete see TL territory",196,196,"TP-Obsolete see TL territory",196,196,"TP-Obsolete see TL territory"]
[{"$nulls":52},"TR-Turkey",null,"TR",{"$f":"ROWS($BA$1:BA197)","v":197},197,197,"TR-Turkey",197,197,"TR-Turkey",197,197,"TR-Turkey",197,197,"TR-Turkey",197,197,"TR-Turkey"]
[{"$nulls":52},"TT-Trinidad and Tobago",null,"TT",{"$f":"ROWS($BA$1:BA198)","v":198},198,198,"TT-Trinidad and Tobago",198,198,"TT-Trinidad and Tobago",198,198,"TT-Trinidad and Tobago",198,198,"TT-Trinidad and Tobago",198,198,"TT-Trinidad and Tobago"]
[{"$nulls":52},"TV-Tuvalu",null,"TV",{"$f":"ROWS($BA$1:BA199)","v":199},199,199,"TV-Tuvalu",199,199,"TV-Tuvalu",199,199,"TV-Tuvalu",199,199,"TV-Tuvalu",199,199,"TV-Tuvalu"]
[{"$nulls":52},"TW-Taiwan",null,"TW",{"$f":"ROWS($BA$1:BA200)","v":200},200,200,"TW-Taiwan",200,200,"TW-Taiwan",200,200,"TW-Taiwan",200,200,"TW-Taiwan",200,200,"TW-Taiwan"]
[{"$nulls":52},"TZ-Tanzania, United Republic of",null,"TZ",{"$f":"ROWS($BA$1:BA201)","v":201},201,201,"TZ-Tanzania, United Republic of",201,201,"TZ-Tanzania, United Republic of",201,201,"TZ-Tanzania, United Republic of",201,201,"TZ-Tanzania, United Republic of",201,201,"TZ-Tanzania, United Republic of"]
[{"$nulls":52},"UA-Ukraine",null,"UA",{"$f":"ROWS($BA$1:BA202)","v":202},202,202,"UA-Ukraine",202,202,"UA-Ukraine",202,202,"UA-Ukraine",202,202,"UA-Ukraine",202,202,"UA-Ukraine"]
[{"$nulls":52},"UG-Uganda",null,"UG",{"$f":"ROWS($BA$1:BA203)","v":203},203,203,"UG-Uganda",203,203,"UG-Uganda",203,203,"UG-Uganda",203,203,"UG-Uganda",203,203,"UG-Uganda"]
[{"$nulls":52},"UM-United States Minor Outlying Islands",null,"UM",{"$f":"ROWS($BA$1:BA204)","v":204},204,204,"UM-United States Minor Outlying Islands",204,204,"UM-United States Minor Outlying Islands",204,204,"UM-United States Minor Outlying Islands",204,204,"UM-United States Minor Outlying Islands",204,204,"UM-United States Minor Outlying Islands"]
[{"$nulls":52},"US-United States",null,"US",{"$f":"ROWS($BA$1:BA205)","v":205},205,205,"US-United States",205,205,"US-United States",205,205,"US-United States",205,205,"US-United States",205,205,"US-United States"]
[{"$nulls":52},"UY-Uruguay",null,"UY",{"$f":"ROWS($BA$1:BA206)","v":206},206,206,"UY-Uruguay",206,206,"UY-Uruguay",206,206,"UY-Uruguay",206,206,"UY-Uruguay",206,206,"UY-Uruguay"]
[{"$nulls":52},"UZ-Uzbekistan",null,"UZ",{"$f":"ROWS($BA$1:BA207)","v":207},207,207,"UZ-Uzbekistan",207,207,"UZ-Uzbekistan",207,207,"UZ-Uzbekistan",207,207,"UZ-Uzbekistan",207,207,"UZ-Uzbekistan"]
[{"$nulls":52},"VA-Holy See (Vatican City State)",null,"VA",{"$f":"ROWS($BA$1:BA208)","v":208},208,208,"VA-Holy See (Vatican City State)",208,208,"VA-Holy See (Vatican City State)",208,208,"VA-Holy See (Vatican City State)",208,208,"VA-Holy See (Vatican City State)",208,208,"VA-Holy See (Vatican City State)"]
[{"$nulls":52},"VC-Saint Vincent and the Grenadines",null,"VC",{"$f":"ROWS($BA$1:BA209)","v":209},209,209,"VC-Saint Vincent and the Grenadines",209,209,"VC-Saint Vincent and the Grenadines",209,209,"VC-Saint Vincent and the Grenadines",209,209,"VC-Saint Vincent and the Grenadines",209,209,"VC-Saint Vincent and the Grenadines"]
[{"$nulls":52},"VE-Venezuela, Bolivarian Republic of",null,"VE",{"$f":"ROWS($BA$1:BA210)","v":210},210,210,"VE-Venezuela, Bolivarian Republic of",210,210,"VE-Venezuela, Bolivarian Republic of",210,210,"VE-Venezuela, Bolivarian Republic of",210,210,"VE-Venezuela, Bolivarian Republic of",210,210,"VE-Venezuela, Bolivarian Republic of"]
[{"$nulls":52},"VG-Virgin Islands, British",null,"VG",{"$f":"ROWS($BA$1:BA211)","v":211},211,211,"VG-Virgin Islands, British",211,211,"VG-Virgin Islands, British",211,211,"VG-Virgin Islands, British",211,211,"VG-Virgin Islands, British",211,211,"VG-Virgin Islands, British"]
[{"$nulls":52},"VI-Virgin Islands, U.S.",null,"VI",{"$f":"ROWS($BA$1:BA212)","v":212},212,212,"VI-Virgin Islands, U.S.",212,212,"VI-Virgin Islands, U.S.",212,212,"VI-Virgin Islands, U.S.",212,212,"VI-Virgin Islands, U.S.",212,212,"VI-Virgin Islands, U.S."]
[{"$nulls":52},"VN-Viet Nam",null,"VN",{"$f":"ROWS($BA$1:BA213)","v":213},213,213,"VN-Viet Nam",213,213,"VN-Viet Nam",213,213,"VN-Viet Nam",213,213,"VN-Viet Nam",213,213,"VN-Viet Nam"]
[{"$nulls":52},"VU-Vanuatu",null,"VU",{"$f":"ROWS($BA$1:BA214)","v":214},214,214,"VU-Vanuatu",214,214,"VU-Vanuatu",214,214,"VU-Vanuatu",214,214,"VU-Vanuatu",214,214,"VU-Vanuatu"]
[{"$nulls":52},"WF-Wallis and Futuna",null,"WF",{"$f":"ROWS($BA$1:BA215)","v":215},215,215,"WF-Wallis and Futuna",215,215,"WF-Wallis and Futuna",215,215,"WF-Wallis and Futuna",215,215,"WF-Wallis and Futuna",215,215,"WF-Wallis and Futuna"]
[{"$nulls":52},"WS-Samoa",null,"WS",{"$f":"ROWS($BA$1:BA216)","v":216},216,216,"WS-Samoa",216,216,"WS-Samoa",216,216,"WS-Samoa",216,216,"WS-Samoa",216,216,"WS-Samoa"]
[{"$nulls":52},"YE-Yemen",null,"YE",{"$f":"ROWS($BA$1:BA217)","v":217},217,217,"YE-Yemen",217,217,"YE-Yemen",217,217,"YE-Yemen",217,217,"YE-Yemen",217,217,"YE-Yemen"]
[{"$nulls":52},"YT-Mayotte",null,"YT",{"$f":"ROWS($BA$1:BA218)","v":218},218,218,"YT-Mayotte",218,218,"YT-Mayotte",218,218,"YT-Mayotte",218,218,"YT-Mayotte",218,218,"YT-Mayotte"]
[{"$nulls":52},"YU-Obsolete see CS territory",null,"YU",{"$f":"ROWS($BA$1:BA219)","v":219},219,219,"YU-Obsolete see CS territory",219,219,"YU-Obsolete see CS territory",219,219,"YU-Obsolete see CS territory",219,219,"YU-Obsolete see CS territory",219,219,"YU-Obsolete see CS territory"]
[{"$nulls":52},"ZA-South Africa",null,"ZA",{"$f":"ROWS($BA$1:BA220)","v":220},220,220,"ZA-South Africa",220,220,"ZA-South Africa",220,220,"ZA-South Africa",220,220,"ZA-South Africa",220,220,"ZA-South Africa"]
[{"$nulls":52},"ZM-Zambia",null,"ZM",{"$f":"ROWS($BA$1:BA221)","v":221},221,221,"ZM-Zambia",221,221,"ZM-Zambia",221,221,"ZM-Zambia",221,221,"ZM-Zambia",221,221,"ZM-Zambia"]
[{"$nulls":52},"ZR-Obsolete see CD territory",null,"ZR",{"$f":"ROWS($BA$1:BA222)","v":222},222,222,"ZR-Obsolete see CD territory",222,222,"ZR-Obsolete see CD territory",222,222,"ZR-Obsolete see CD territory",222,222,"ZR-Obsolete see CD territory",222,222,"ZR-Obsolete see CD territory"]
[{"$nulls":52},"ZW-Zimbabwe",null,"ZW",{"$f":"ROWS($BA$1:BA223)","v":223},223,223,"ZW-Zimbabwe",223,223,"ZW-Zimbabwe",223,223,"ZW-Zimbabwe",223,223,"ZW-Zimbabwe",223,223,"ZW-Zimbabwe"]
[{"$nulls":52},"QU-Countries and territories not specified",null,"QU",{"$f":"ROWS($BA$1:BA224)","v":224},224,224,"QU-Countries and territories not specified",224,224,"QU-Countries and territories not specified",224,224,"QU-Countries and territories not specified",224,224,"QU-Countries and territories not specified",224,224,"QU-Countries and territories not specified"]
[{"$nulls":52},"TL-Timor-Leste",null,"TL",{"$f":"ROWS($BA$1:BA225)","v":225},225,225,"TL-Timor-Leste",225,225,"TL-Timor-Leste",225,225,"TL-Timor-Leste",225,225,"TL-Timor-Leste",225,225,"TL-Timor-Leste"]
[{"$nulls":52},"CS-Obsolete see RS or ME territory",null,"CS",{"$f":"ROWS($BA$1:BA226)","v":226},226,226,"CS-Obsolete see RS or ME territory",226,226,"CS-Obsolete see RS or ME territory",226,226,"CS-Obsolete see RS or ME territory",226,226,"CS-Obsolete see RS or ME territory",226,226,"CS-Obsolete see RS or ME territory"]
[{"$nulls":52},"AX-Aland Islands",null,"AX",{"$f":"ROWS($BA$1:BA227)","v":227},227,227,"AX-Aland Islands",227,227,"AX-Aland Islands",227,227,"AX-Aland Islands",227,227,"AX-Aland Islands",227,227,"AX-Aland Islands"]
[{"$nulls":52},"JE-Jersey",null,"JE",{"$f":"ROWS($BA$1:BA228)","v":228},228,228,"JE-Jersey",228,228,"JE-Jersey",228,228,"JE-Jersey",228,228,"JE-Jersey",228,228,"JE-Jersey"]
[{"$nulls":52},"GG-Guernsey",null,"GG",{"$f":"ROWS($BA$1:BA229)","v":229},229,229,"GG-Guernsey",229,229,"GG-Guernsey",229,229,"GG-Guernsey",229,229,"GG-Guernsey",229,229,"GG-Guernsey"]
[{"$nulls":52},"IM-Isle of Man",null,"IM",{"$f":"ROWS($BA$1:BA230)","v":230},230,230,"IM-Isle of Man",230,230,"IM-Isle of Man",230,230,"IM-Isle of Man",230,230,"IM-Isle of Man",230,230,"IM-Isle of Man"]
[{"$nulls":52},"RS-Serbia",null,"RS",{"$f":"ROWS($BA$1:BA231)","v":231},231,231,"RS-Serbia",231,231,"RS-Serbia",231,231,"RS-Serbia",231,231,"RS-Serbia",231,231,"RS-Serbia"]
[{"$nulls":52},"ME-Montenegro",null,"ME",{"$f":"ROWS($BA$1:BA232)","v":232},232,232,"ME-Montenegro",232,232,"ME-Montenegro",232,232,"ME-Montenegro",232,232,"ME-Montenegro",232,232,"ME-Montenegro"]
[{"$nulls":52},"BL-Saint Barthelemy",null,"BL",{"$f":"ROWS($BA$1:BA233)","v":233},233,233,"BL-Saint Barthelemy",233,233,"BL-Saint Barthelemy",233,233,"BL-Saint Barthelemy",233,233,"BL-Saint Barthelemy",233,233,"BL-Saint Barthelemy"]
[{"$nulls":52},"MF-Saint Martin (French part)",null,"MF",{"$f":"ROWS($BA$1:BA234)","v":234},234,234,"MF-Saint Martin (French part)",234,234,"MF-Saint Martin (French part)",234,234,"MF-Saint Martin (French part)",234,234,"MF-Saint Martin (French part)",234,234,"MF-Saint Martin (French part)"]
[{"$nulls":52},"BQ-Bonaire, Sint Eustatius and Saba",null,"BQ",{"$f":"ROWS($BA$1:BA235)","v":235},235,235,"BQ-Bonaire, Sint Eustatius and Saba",235,235,"BQ-Bonaire, Sint Eustatius and Saba",235,235,"BQ-Bonaire, Sint Eustatius and Saba",235,235,"BQ-Bonaire, Sint Eustatius and Saba",235,235,"BQ-Bonaire, Sint Eustatius and Saba"]
[{"$nulls":52},"CW-Curacao",null,"CW",{"$f":"ROWS($BA$1:BA236)","v":236},236,236,"CW-Curacao",236,236,"CW-Curacao",236,236,"CW-Curacao",236,236,"CW-Curacao",236,236,"CW-Curacao"]
[{"$nulls":52},"SX-Sint Maarten (Dutch part)",null,"SX",{"$f":"ROWS($BA$1:BA237)","v":237},237,{"$f":"IFERROR(SMALL($BE$1:$BE$281,BD237),\"\")","v":237},{"$f":"IFERROR(INDEX($BA$1:$BA$281,$BF237,1),\"\")","v":"SX-Sint Maarten (Dutch part)"},237,237,"SX-Sint Maarten (Dutch part)",237,237,"SX-Sint Maarten (Dutch part)",237,237,"SX-Sint Maarten (Dutch part)",237,237,"SX-Sint Maarten (Dutch part)"]
[{"$nulls":52},"SS-South Sudan",null,"SS",{"$f":"ROWS($BA$1:BA238)","v":238},{"$f":"IF(ISNUMBER(SEARCH(ListPIlietybe,BA238,1)),BD238,\"\")","v":238},238,"SS-South Sudan",238,238,"SS-South Sudan",238,238,"SS-South Sudan",238,238,"SS-South Sudan",238,238,"SS-South Sudan"]
[{"$nulls":52},"WITHOUT CITIZENSHIP",null,"--",{"$f":"ROWS($BA$1:BA239)","v":239},239,239,"WITHOUT CITIZENSHIP",null,"",""]